Workbook

Sheet Prestazioni
C1: Tipologia | F1: Modello
G2: HWT-1401H8W-E
A4: Dati di Potenza e COP a pieno carico in riscaldamento | J4: Dati di Potenza e EER a pieno carico in raffrescamento | S4: LINK UTILI
A5: T sorgente | B5: Fattore di carico | C5: Potenza termica erogata [kW] | F5: COP | J5: T sorgente | K5: Fattore di carico | L5: Potenza termica erogata [kW] | O5: EER
C6: T mandata 35°C | D6: T mandata 45°C | E6: T mandata 55°C | F6: T mandata 35°C | G6: T mandata 45°C | H6: T mandata 55°C | L6: T mandata 7°C | M6: T mandata 13°C | N6: T mandata 18°C | O6: T mandata 7°C | P6: T mandata 13°C | Q6: T mandata 18°C
A7: -7°C | B7: 1 | C7: =IFERROR(VLOOKUP($G$2,'35°'!$A$3:$Q$405,2,FALSE),"ND") -> 13.05 | D7: =IFERROR(VLOOKUP($G$2,'45°'!$A$3:$Q$207,2,FALSE),"ND") -> 12.93 | E7: =IFERROR(VLOOKUP($G$2,'55°'!$A$3:$Q$205,2,FALSE),"ND") -> 12.81 | F7: =IFERROR(VLOOKUP($G$2,'35°'!$A$3:$AG$315,18,FALSE),"ND") -> 2.88 | G7: =IFERROR(VLOOKUP($G$2,'45°'!$A$3:$AG$317,18,FALSE),"ND") -> 2.56 | H7: =IFERROR(VLOOKUP($G$2,'55°'!$A$3:$AG$315,18,FALSE),"ND") -> 2.3 | J7: 20°C | K7: 1 | L7: =IFERROR(VLOOKUP($G$2,'7°'!$A$3:$P$406,2,FALSE),"ND") -> 11.6 | M7: =IFERROR(VLOOKUP($G$2,'13°'!$A$3:$P$207,2,FALSE),"ND") -> 13.44 | N7: =IFERROR(VLOOKUP($G$2,'18°'!$A$3:$P$206,2,FALSE),"ND") -> 14.76 | O7: =IFERROR(VLOOKUP($G$2,'7°'!$A$3:$AF$316,18,FALSE),"ND") -> 3.88 | P7: =IFERROR(VLOOKUP($G$2,'13°'!$A$3:$AF$317,18,FALSE),"ND") -> 4.47 | Q7: =IFERROR(VLOOKUP($G$2,'18°'!$A$3:$AF$316,18,FALSE),"ND") -> 4.75
A8: 2°C | C8: =IFERROR(VLOOKUP($G$2,'35°'!$A$3:$Q$405,3,FALSE),"ND") -> 16.13 | D8: =IFERROR(VLOOKUP($G$2,'45°'!$A$3:$Q$207,3,FALSE),"ND") -> 16.17 | E8: =IFERROR(VLOOKUP($G$2,'55°'!$A$3:$Q$205,3,FALSE),"ND") -> 16.2 | F8: =IFERROR(VLOOKUP($G$2,'35°'!$A$3:$AG$315,19,FALSE),"ND") -> 3.49 | G8: =IFERROR(VLOOKUP($G$2,'45°'!$A$3:$AG$317,19,FALSE),"ND") -> 3.02 | H8: =IFERROR(VLOOKUP($G$2,'55°'!$A$3:$AG$315,19,FALSE),"ND") -> 2.66 | J8: 27°C | L8: =IFERROR(VLOOKUP($G$2,'7°'!$A$3:$P$406,3,FALSE),"ND") -> 11.11 | M8: =IFERROR(VLOOKUP($G$2,'13°'!$A$3:$P$207,3,FALSE),"ND") -> 13.04 | N8: =IFERROR(VLOOKUP($G$2,'18°'!$A$3:$P$206,3,FALSE),"ND") -> 14.24 | O8: =IFERROR(VLOOKUP($G$2,'7°'!$A$3:$AF$316,19,FALSE),"ND") -> 3.04 | P8: =IFERROR(VLOOKUP($G$2,'13°'!$A$3:$AF$317,19,FALSE),"ND") -> 3.45 | Q8: =IFERROR(VLOOKUP($G$2,'18°'!$A$3:$AF$316,19,FALSE),"ND") -> 3.71
A9: 7°C | C9: =IFERROR(VLOOKUP($G$2,'35°'!$A$3:$Q$405,4,FALSE),"ND") -> 18.39 | D9: =IFERROR(VLOOKUP($G$2,'45°'!$A$3:$Q$207,4,FALSE),"ND") -> 18.14 | E9: =IFERROR(VLOOKUP($G$2,'55°'!$A$3:$Q$205,4,FALSE),"ND") -> 17.89 | F9: =IFERROR(VLOOKUP($G$2,'35°'!$A$3:$AG$315,20,FALSE),"ND") -> 3.89 | G9: =IFERROR(VLOOKUP($G$2,'45°'!$A$3:$AG$317,20,FALSE),"ND") -> 3.32 | H9: =IFERROR(VLOOKUP($G$2,'55°'!$A$3:$AG$315,20,FALSE),"ND") -> 2.89 | J9: 30°C | L9: =IFERROR(VLOOKUP($G$2,'7°'!$A$3:$P$406,4,FALSE),"ND") -> 10.89 | M9: =IFERROR(VLOOKUP($G$2,'13°'!$A$3:$P$207,4,FALSE),"ND") -> 12.87 | N9: =IFERROR(VLOOKUP($G$2,'18°'!$A$3:$P$206,4,FALSE),"ND") -> 14.01 | O9: =IFERROR(VLOOKUP($G$2,'7°'!$A$3:$AF$316,20,FALSE),"ND") -> 2.77 | P9: =IFERROR(VLOOKUP($G$2,'13°'!$A$3:$AF$317,20,FALSE),"ND") -> 3.13 | Q9: =IFERROR(VLOOKUP($G$2,'18°'!$A$3:$AF$316,20,FALSE),"ND") -> 3.37
A10: 12°C | C10: =IFERROR(VLOOKUP($G$2,'35°'!$A$3:$Q$405,5,FALSE),"ND") -> 20.35 | D10: =IFERROR(VLOOKUP($G$2,'45°'!$A$3:$Q$207,5,FALSE),"ND") -> 20.14 | E10: =IFERROR(VLOOKUP($G$2,'55°'!$A$3:$Q$205,5,FALSE),"ND") -> 19.93 | F10: =IFERROR(VLOOKUP($G$2,'35°'!$A$3:$AG$315,21,FALSE),"ND") -> 4.34 | G10: =IFERROR(VLOOKUP($G$2,'45°'!$A$3:$AG$317,21,FALSE),"ND") -> 3.68 | H10: =IFERROR(VLOOKUP($G$2,'55°'!$A$3:$AG$315,21,FALSE),"ND") -> 3.19 | J10: 35°C | L10: =IFERROR(VLOOKUP($G$2,'7°'!$A$3:$P$406,5,FALSE),"ND") -> 10.54 | M10: =IFERROR(VLOOKUP($G$2,'13°'!$A$3:$P$207,5,FALSE),"ND") -> 12.59 | N10: =IFERROR(VLOOKUP($G$2,'18°'!$A$3:$P$206,5,FALSE),"ND") -> 13.64 | O10: =IFERROR(VLOOKUP($G$2,'7°'!$A$3:$AF$316,21,FALSE),"ND") -> 2.39 | P10: =IFERROR(VLOOKUP($G$2,'13°'!$A$3:$AF$317,21,FALSE),"ND") -> 2.7 | Q10: =IFERROR(VLOOKUP($G$2,'18°'!$A$3:$AF$316,21,FALSE),"ND") -> 2.91
A11: T sorgente | B11: Fattore di carico | C11: Potenza termica erogata [kW] | F11: COP | J11: T sorgente | K11: Fattore di carico | L11: Potenza termica erogata [kW] | O11: EER
C12: T mandata 35°C | D12: T mandata 45°C | E12: T mandata 55°C | F12: T mandata 35°C | G12: T mandata 45°C | H12: T mandata 55°C | L12: T mandata 7°C | M12: T mandata 13°C | N12: T mandata 18°C | O12: T mandata 7°C | P12: T mandata 13°C | Q12: T mandata 18°C
A13: -7°C | B13: 0.6 | C13: =IFERROR(VLOOKUP($G$2,'35°'!$A$3:$Q$405,6,FALSE),"ND") -> 7.83 | D13: =IFERROR(VLOOKUP($G$2,'45°'!$A$3:$Q$207,6,FALSE),"ND") -> 7.76 | E13: =IFERROR(VLOOKUP($G$2,'55°'!$A$3:$Q$205,6,FALSE),"ND") -> 7.69 | F13: =IFERROR(VLOOKUP($G$2,'35°'!$A$3:$AG$315,22,FALSE),"ND") -> 3.18 | G13: =IFERROR(VLOOKUP($G$2,'45°'!$A$3:$AG$317,22,FALSE),"ND") -> 2.65 | H13: =IFERROR(VLOOKUP($G$2,'55°'!$A$3:$AG$315,22,FALSE),"ND") -> 2.21 | J13: 20°C | K13: 0.6 | L13: =IFERROR(VLOOKUP($G$2,'7°'!$A$3:$P$406,6,FALSE),"ND") -> 6.96 | M13: =IFERROR(VLOOKUP($G$2,'13°'!$A$3:$P$207,6,FALSE),"ND") -> 8.06 | N13: =IFERROR(VLOOKUP($G$2,'18°'!$A$3:$P$206,6,FALSE),"ND") -> 8.86 | O13: =IFERROR(VLOOKUP($G$2,'7°'!$A$3:$AF$316,22,FALSE),"ND") -> 4.43 | P13: =IFERROR(VLOOKUP($G$2,'13°'!$A$3:$AF$317,22,FALSE),"ND") -> 5.29 | Q13: =IFERROR(VLOOKUP($G$2,'18°'!$A$3:$AF$316,22,FALSE),"ND") -> 6.09
A14: 2°C | C14: =IFERROR(VLOOKUP($G$2,'35°'!$A$3:$Q$405,7,FALSE),"ND") -> 9.68 | D14: =IFERROR(VLOOKUP($G$2,'45°'!$A$3:$Q$207,7,FALSE),"ND") -> 9.7 | E14: =IFERROR(VLOOKUP($G$2,'55°'!$A$3:$Q$205,7,FALSE),"ND") -> 8.1 | F14: =IFERROR(VLOOKUP($G$2,'35°'!$A$3:$AG$315,23,FALSE),"ND") -> 4.03 | G14: =IFERROR(VLOOKUP($G$2,'45°'!$A$3:$AG$317,23,FALSE),"ND") -> 3.28 | H14: =IFERROR(VLOOKUP($G$2,'55°'!$A$3:$AG$315,23,FALSE),"ND") -> 2.77 | J14: 27°C | L14: =IFERROR(VLOOKUP($G$2,'7°'!$A$3:$P$406,7,FALSE),"ND") -> 6.66 | M14: =IFERROR(VLOOKUP($G$2,'13°'!$A$3:$P$207,7,FALSE),"ND") -> 7.83 | N14: =IFERROR(VLOOKUP($G$2,'18°'!$A$3:$P$206,7,FALSE),"ND") -> 8.54 | O14: =IFERROR(VLOOKUP($G$2,'7°'!$A$3:$AF$316,23,FALSE),"ND") -> 3.6 | P14: =IFERROR(VLOOKUP($G$2,'13°'!$A$3:$AF$317,23,FALSE),"ND") -> 4.17 | Q14: =IFERROR(VLOOKUP($G$2,'18°'!$A$3:$AF$316,23,FALSE),"ND") -> 4.69
A15: 7°C | C15: =IFERROR(VLOOKUP($G$2,'35°'!$A$3:$Q$405,8,FALSE),"ND") -> 11.03 | D15: =IFERROR(VLOOKUP($G$2,'45°'!$A$3:$Q$207,8,FALSE),"ND") -> 10.88 | E15: =IFERROR(VLOOKUP($G$2,'55°'!$A$3:$Q$205,8,FALSE),"ND") -> 8.95 | F15: =IFERROR(VLOOKUP($G$2,'35°'!$A$3:$AG$315,24,FALSE),"ND") -> 4.75 | G15: =IFERROR(VLOOKUP($G$2,'45°'!$A$3:$AG$317,24,FALSE),"ND") -> 3.73 | H15: =IFERROR(VLOOKUP($G$2,'55°'!$A$3:$AG$315,24,FALSE),"ND") -> 3.12 | J15: 30°C | L15: =IFERROR(VLOOKUP($G$2,'7°'!$A$3:$P$406,8,FALSE),"ND") -> 6.54 | M15: =IFERROR(VLOOKUP($G$2,'13°'!$A$3:$P$207,8,FALSE),"ND") -> 7.72 | N15: =IFERROR(VLOOKUP($G$2,'18°'!$A$3:$P$206,8,FALSE),"ND") -> 8.41 | O15: =IFERROR(VLOOKUP($G$2,'7°'!$A$3:$AF$316,24,FALSE),"ND") -> 3.35 | P15: =IFERROR(VLOOKUP($G$2,'13°'!$A$3:$AF$317,24,FALSE),"ND") -> 3.83 | Q15: =IFERROR(VLOOKUP($G$2,'18°'!$A$3:$AF$316,24,FALSE),"ND") -> 4.28
A16: 12°C | C16: =IFERROR(VLOOKUP($G$2,'35°'!$A$3:$Q$405,9,FALSE),"ND") -> 12.21 | D16: =IFERROR(VLOOKUP($G$2,'45°'!$A$3:$Q$207,9,FALSE),"ND") -> 12.08 | E16: =IFERROR(VLOOKUP($G$2,'55°'!$A$3:$Q$205,9,FALSE),"ND") -> 9.97 | F16: =IFERROR(VLOOKUP($G$2,'35°'!$A$3:$AG$315,25,FALSE),"ND") -> 5.41 | G16: =IFERROR(VLOOKUP($G$2,'45°'!$A$3:$AG$317,25,FALSE),"ND") -> 4.15 | H16: =IFERROR(VLOOKUP($G$2,'55°'!$A$3:$AG$315,25,FALSE),"ND") -> 3.51 | J16: 35°C | L16: =IFERROR(VLOOKUP($G$2,'7°'!$A$3:$P$406,9,FALSE),"ND") -> 6.32 | M16: =IFERROR(VLOOKUP($G$2,'13°'!$A$3:$P$207,9,FALSE),"ND") -> 7.55 | N16: =IFERROR(VLOOKUP($G$2,'18°'!$A$3:$P$206,9,FALSE),"ND") -> 8.18 | O16: =IFERROR(VLOOKUP($G$2,'7°'!$A$3:$AF$316,25,FALSE),"ND") -> 3 | P16: =IFERROR(VLOOKUP($G$2,'13°'!$A$3:$AF$317,25,FALSE),"ND") -> 3.38 | Q16: =IFERROR(VLOOKUP($G$2,'18°'!$A$3:$AF$316,25,FALSE),"ND") -> 3.75
A17: T sorgente | B17: Fattore di carico | C17: Potenza termica erogata [kW] | F17: COP | J17: T sorgente | K17: Fattore di carico | L17: Potenza termica erogata [kW] | O17: EER
C18: T mandata 35°C | D18: T mandata 45°C | E18: T mandata 55°C | F18: T mandata 35°C | G18: T mandata 45°C | H18: T mandata 55°C | L18: T mandata 7°C | M18: T mandata 13°C | N18: T mandata 18°C | O18: T mandata 7°C | P18: T mandata 13°C | Q18: T mandata 18°C
A19: -7°C | B19: 0.3 | C19: =IFERROR(VLOOKUP($G$2,'35°'!$A$3:$Q$405,10,FALSE),"ND") -> 4.29 | D19: =IFERROR(VLOOKUP($G$2,'45°'!$A$3:$Q$207,10,FALSE),"ND") -> 4,.25 | E19: =IFERROR(VLOOKUP($G$2,'55°'!$A$3:$Q$205,10,FALSE),"ND") -> 4.21 | F19: =IFERROR(VLOOKUP($G$2,'35°'!$A$3:$AG$315,26,FALSE),"ND") -> 3 | G19: =IFERROR(VLOOKUP($G$2,'45°'!$A$3:$AG$317,26,FALSE),"ND") -> 2.33 | H19: =IFERROR(VLOOKUP($G$2,'55°'!$A$3:$AG$315,26,FALSE),"ND") -> 1.94 | J19: 20°C | K19: 0.3 | L19: =IFERROR(VLOOKUP($G$2,'7°'!$A$3:$P$406,10,FALSE),"ND") -> 3.48 | M19: =IFERROR(VLOOKUP($G$2,'13°'!$A$3:$P$207,10,FALSE),"ND") -> 4.03 | N19: =IFERROR(VLOOKUP($G$2,'18°'!$A$3:$P$206,10,FALSE),"ND") -> 4.43 | O19: =IFERROR(VLOOKUP($G$2,'7°'!$A$3:$AF$316,26,FALSE),"ND") -> 4.15 | P19: =IFERROR(VLOOKUP($G$2,'13°'!$A$3:$AF$317,26,FALSE),"ND") -> 5.75 | Q19: =IFERROR(VLOOKUP($G$2,'18°'!$A$3:$AF$316,26,FALSE),"ND") -> 6.88
A20: 2°C | C20: =IFERROR(VLOOKUP($G$2,'35°'!$A$3:$Q$405,11,FALSE),"ND") -> 5.18 | D20: =IFERROR(VLOOKUP($G$2,'45°'!$A$3:$Q$207,11,FALSE),"ND") -> 5.31 | E20: =IFERROR(VLOOKUP($G$2,'55°'!$A$3:$Q$205,11,FALSE),"ND") -> 5.32 | F20: =IFERROR(VLOOKUP($G$2,'35°'!$A$3:$AG$315,27,FALSE),"ND") -> 4.07 | G20: =IFERROR(VLOOKUP($G$2,'45°'!$A$3:$AG$317,27,FALSE),"ND") -> 3.28 | H20: =IFERROR(VLOOKUP($G$2,'55°'!$A$3:$AG$315,27,FALSE),"ND") -> 2.53 | J20: 27°C | L20: =IFERROR(VLOOKUP($G$2,'7°'!$A$3:$P$406,11,FALSE),"ND") -> 3.33 | M20: =IFERROR(VLOOKUP($G$2,'13°'!$A$3:$P$207,11,FALSE),"ND") -> 3.91 | N20: =IFERROR(VLOOKUP($G$2,'18°'!$A$3:$P$206,11,FALSE),"ND") -> 4.27 | O20: =IFERROR(VLOOKUP($G$2,'7°'!$A$3:$AF$316,27,FALSE),"ND") -> 3.5 | P20: =IFERROR(VLOOKUP($G$2,'13°'!$A$3:$AF$317,27,FALSE),"ND") -> 4.56 | Q20: =IFERROR(VLOOKUP($G$2,'18°'!$A$3:$AF$316,27,FALSE),"ND") -> 5.45
A21: 7°C | C21: =IFERROR(VLOOKUP($G$2,'35°'!$A$3:$Q$405,12,FALSE),"ND") -> 5.52 | D21: =IFERROR(VLOOKUP($G$2,'45°'!$A$3:$Q$207,12,FALSE),"ND") -> 5.83 | E21: =IFERROR(VLOOKUP($G$2,'55°'!$A$3:$Q$205,12,FALSE),"ND") -> 5.75 | F21: =IFERROR(VLOOKUP($G$2,'35°'!$A$3:$AG$315,28,FALSE),"ND") -> 5.01 | G21: =IFERROR(VLOOKUP($G$2,'45°'!$A$3:$AG$317,28,FALSE),"ND") -> 3.79 | H21: =IFERROR(VLOOKUP($G$2,'55°'!$A$3:$AG$315,28,FALSE),"ND") -> 2.97 | J21: 30°C | L21: =IFERROR(VLOOKUP($G$2,'7°'!$A$3:$P$406,12,FALSE),"ND") -> 3.27 | M21: =IFERROR(VLOOKUP($G$2,'13°'!$A$3:$P$207,12,FALSE),"ND") -> 3.86 | N21: =IFERROR(VLOOKUP($G$2,'18°'!$A$3:$P$206,12,FALSE),"ND") -> 4.2 | O21: =IFERROR(VLOOKUP($G$2,'7°'!$A$3:$AF$316,28,FALSE),"ND") -> 3.28 | P21: =IFERROR(VLOOKUP($G$2,'13°'!$A$3:$AF$317,28,FALSE),"ND") -> 4.13 | Q21: =IFERROR(VLOOKUP($G$2,'18°'!$A$3:$AF$316,28,FALSE),"ND") -> 5.01
A22: 12°C | C22: =IFERROR(VLOOKUP($G$2,'35°'!$A$3:$Q$405,13,FALSE),"ND") -> 6.11 | D22: =IFERROR(VLOOKUP($G$2,'45°'!$A$3:$Q$207,13,FALSE),"ND") -> 6.47 | E22: =IFERROR(VLOOKUP($G$2,'55°'!$A$3:$Q$205,13,FALSE),"ND") -> 6.4 | F22: =IFERROR(VLOOKUP($G$2,'35°'!$A$3:$AG$315,29,FALSE),"ND") -> 5.93 | G22: =IFERROR(VLOOKUP($G$2,'45°'!$A$3:$AG$317,29,FALSE),"ND") -> 4.62 | H22: =IFERROR(VLOOKUP($G$2,'55°'!$A$3:$AG$315,29,FALSE),"ND") -> 3.4 | J22: 35°C | L22: =IFERROR(VLOOKUP($G$2,'7°'!$A$3:$P$406,13,FALSE),"ND") -> 3.16 | M22: =IFERROR(VLOOKUP($G$2,'13°'!$A$3:$P$207,13,FALSE),"ND") -> 3.78 | N22: =IFERROR(VLOOKUP($G$2,'18°'!$A$3:$P$206,13,FALSE),"ND") -> 4.09 | O22: =IFERROR(VLOOKUP($G$2,'7°'!$A$3:$AF$316,29,FALSE),"ND") -> 2.95 | P22: =IFERROR(VLOOKUP($G$2,'13°'!$A$3:$AF$317,29,FALSE),"ND") -> 3.69 | Q22: =IFERROR(VLOOKUP($G$2,'18°'!$A$3:$AF$316,29,FALSE),"ND") -> 4.42
A23: T sorgente | B23: Fattore di carico | C23: Potenza termica erogata [kW] | F23: COP | J23: T sorgente | K23: Fattore di carico | L23: Potenza termica erogata [kW] | O23: EER
C24: T mandata 35°C | D24: T mandata 45°C | E24: T mandata 55°C | F24: T mandata 35°C | G24: T mandata 45°C | H24: T mandata 55°C | L24: T mandata 7°C | M24: T mandata 13°C | N24: T mandata 18°C | O24: T mandata 7°C | P24: T mandata 13°C | Q24: T mandata 18°C
A25: -7°C | B25: 0.1 | C25: =IFERROR(VLOOKUP($G$2,'35°'!$A$3:$Q$405,14,FALSE),"ND") -> 4.29 | D25: =IFERROR(VLOOKUP($G$2,'45°'!$A$3:$Q$207,14,FALSE),"ND") -> 4.25 | E25: =IFERROR(VLOOKUP($G$2,'55°'!$A$3:$Q$205,14,FALSE),"ND") -> 4.21 | F25: =IFERROR(VLOOKUP($G$2,'35°'!$A$3:$AG$315,30,FALSE),"ND") -> 3 | G25: =IFERROR(VLOOKUP($G$2,'45°'!$A$3:$AG$317,30,FALSE),"ND") -> 2.33 | H25: =IFERROR(VLOOKUP($G$2,'55°'!$A$3:$AG$315,30,FALSE),"ND") -> 1.94 | J25: 20°C | K25: 0.1 | L25: =IFERROR(VLOOKUP($G$2,'7°'!$A$3:$P$406,14,FALSE),"ND") -> 2.74 | M25: =IFERROR(VLOOKUP($G$2,'13°'!$A$3:$P$207,14,FALSE),"ND") -> 2.16 | N25: =IFERROR(VLOOKUP($G$2,'18°'!$A$3:$P$206,14,FALSE),"ND") -> 2.37 | O25: =IFERROR(VLOOKUP($G$2,'7°'!$A$3:$AF$316,30,FALSE),"ND") -> 3.83 | P25: =IFERROR(VLOOKUP($G$2,'13°'!$A$3:$AF$317,30,FALSE),"ND") -> 5.27 | Q25: =IFERROR(VLOOKUP($G$2,'18°'!$A$3:$AF$316,30,FALSE),"ND") -> 6.16
A26: 2°C | C26: =IFERROR(VLOOKUP($G$2,'35°'!$A$3:$Q$405,15,FALSE),"ND") -> 5.18 | D26: =IFERROR(VLOOKUP($G$2,'45°'!$A$3:$Q$207,15,FALSE),"ND") -> 5.31 | E26: =IFERROR(VLOOKUP($G$2,'55°'!$A$3:$Q$205,15,FALSE),"ND") -> 5.32 | F26: =IFERROR(VLOOKUP($G$2,'35°'!$A$3:$AG$315,31,FALSE),"ND") -> 4.07 | G26: =IFERROR(VLOOKUP($G$2,'45°'!$A$3:$AG$317,31,FALSE),"ND") -> 3.28 | H26: =IFERROR(VLOOKUP($G$2,'55°'!$A$3:$AG$315,31,FALSE),"ND") -> 2.53 | J26: 27°C | L26: =IFERROR(VLOOKUP($G$2,'7°'!$A$3:$P$406,15,FALSE),"ND") -> 3.29 | M26: =IFERROR(VLOOKUP($G$2,'13°'!$A$3:$P$207,15,FALSE),"ND") -> 3.87 | N26: =IFERROR(VLOOKUP($G$2,'18°'!$A$3:$P$206,15,FALSE),"ND") -> 2.17 | O26: =IFERROR(VLOOKUP($G$2,'7°'!$A$3:$AF$316,31,FALSE),"ND") -> 3.49 | P26: =IFERROR(VLOOKUP($G$2,'13°'!$A$3:$AF$317,31,FALSE),"ND") -> 4.56 | Q26: =IFERROR(VLOOKUP($G$2,'18°'!$A$3:$AF$316,31,FALSE),"ND") -> 5.04
A27: 7°C | C27: =IFERROR(VLOOKUP($G$2,'35°'!$A$3:$Q$405,16,FALSE),"ND") -> 2.55 | D27: =IFERROR(VLOOKUP($G$2,'45°'!$A$3:$Q$207,16,FALSE),"ND") -> 5.83 | E27: =IFERROR(VLOOKUP($G$2,'55°'!$A$3:$Q$205,16,FALSE),"ND") -> 5.75 | F27: =IFERROR(VLOOKUP($G$2,'35°'!$A$3:$AG$315,32,FALSE),"ND") -> 3.98 | G27: =IFERROR(VLOOKUP($G$2,'45°'!$A$3:$AG$317,32,FALSE),"ND") -> 3.79 | H27: =IFERROR(VLOOKUP($G$2,'55°'!$A$3:$AG$315,32,FALSE),"ND") -> 2.97 | J27: 30°C | L27: =IFERROR(VLOOKUP($G$2,'7°'!$A$3:$P$406,16,FALSE),"ND") -> 3.23 | M27: =IFERROR(VLOOKUP($G$2,'13°'!$A$3:$P$207,16,FALSE),"ND") -> 3.82 | N27: =IFERROR(VLOOKUP($G$2,'18°'!$A$3:$P$206,16,FALSE),"ND") -> 2.26 | O27: =IFERROR(VLOOKUP($G$2,'7°'!$A$3:$AF$316,32,FALSE),"ND") -> 3.26 | P27: =IFERROR(VLOOKUP($G$2,'13°'!$A$3:$AF$317,32,FALSE),"ND") -> 4.19 | Q27: =IFERROR(VLOOKUP($G$2,'18°'!$A$3:$AF$316,32,FALSE),"ND") -> 4.77
A28: 12°C | C28: =IFERROR(VLOOKUP($G$2,'35°'!$A$3:$Q$405,17,FALSE),"ND") -> 2.82 | D28: =IFERROR(VLOOKUP($G$2,'45°'!$A$3:$Q$207,17,FALSE),"ND") -> 6.47 | E28: =IFERROR(VLOOKUP($G$2,'55°'!$A$3:$Q$205,17,FALSE),"ND") -> 6.4 | F28: =IFERROR(VLOOKUP($G$2,'35°'!$A$3:$AG$315,33,FALSE),"ND") -> 4.84 | G28: =IFERROR(VLOOKUP($G$2,'45°'!$A$3:$AG$317,33,FALSE),"ND") -> 4.62 | H28: =IFERROR(VLOOKUP($G$2,'55°'!$A$3:$AG$315,33,FALSE),"ND") -> 3.4 | J28: 35°C | L28: =IFERROR(VLOOKUP($G$2,'7°'!$A$3:$P$406,17,FALSE),"ND") -> ND | M28: =IFERROR(VLOOKUP($G$2,'13°'!$A$3:$P$207,17,FALSE),"ND") -> ND | N28: =IFERROR(VLOOKUP($G$2,'18°'!$A$3:$P$206,17,FALSE),"ND") -> ND | O28: =IFERROR(VLOOKUP($G$2,'7°'!$A$3:$AF$316,33,FALSE),"ND") -> ND | P28: =IFERROR(VLOOKUP($G$2,'13°'!$A$3:$AF$317,33,FALSE),"ND") -> ND | Q28: =IFERROR(VLOOKUP($G$2,'18°'!$A$3:$AF$316,33,FALSE),"ND") -> ND

Sheet 35°
A2: Capacità (kW) | B2: Pt 100%-7 | C2: Pt 100% 2 | D2: Pt 100% 7 | E2: Pt 100% 12 | F2: Pt 60%-7 | G2: Pt 60%2 | H2: Pt 60% 7 | I2: Pt 60% 12 | J2: Pt 30%-7 | K2: Pt 30% 2 | L2: Pt 30% 7 | M2: Pt 30% 12 | N2: Pt 10%-7 | O2: Pt 10% 2 | P2: Pt 10% 7 | Q2: Pt 10% 12 | R2: COP 100%-7 | S2: COP 100% 2 | T2: COP 100% 7 | U2: COP 100% 12 | V2: COP 60%-7 | W2: COP 60% 2 | X2: COP 60% 7 | Y2: COP 60% 12 | Z2: COP 30%-7 | AA2: COP 30% 2 | AB2: COP 30% 7 | AC2: COP 30% 12 | AD2: COP 10%-7 | AE2: COP 10% 2 | AF2: COP 10% 7 | AG2: COP 10% 12
A3: HWS-805H-E | B3: 5 | C3: 6.37 | D3: 8.52 | E3: 9.52 | F3: 3 | G3: 3.82 | H3: 5.11 | I3: 5.72 | J3: 2.17 | K3: 2.22 | L3: 2.55 | M3: 2.85 | N3: 2.17 | O3: 2.22 | P3: 1.32 | Q3: 1.47 | R3: 2.7 | S3: 3.34 | T3: 4.24 | U3: 4.85 | V3: 2.8 | W3: 3.46 | X3: 4.39 | Y3: 5.16 | Z3: 2.95 | AA3: 3.78 | AB3: 4.87 | AC3: 5.54 | AD3: 2.95 | AE3: 3.78 | AF3: 6.18 | AG3: 7.18
A4: HWS-1405H-E | B4: 8.63 | C4: 10.65 | D4: 16.74 | E4: 18.58 | F4: 5.18 | G4: 6.39 | H4: 10.05 | I4: 11.15 | J4: 3.86 | K4: 4.23 | L4: 5.02 | M4: 5.58 | N4: 3.86 | O4: 4.23 | P4: 2.92 | Q4: 3.24 | R4: 2.62 | S4: 3.33 | T4: 4.24 | U4: 4.7 | V4: 2.72 | W4: 3.53 | X4: 4.4 | Y4: 4.88 | Z4: 2.83 | AA4: 3.63 | AB4: 4.87 | AC4: 5.4 | AD4: 2.83 | AE4: 3.63 | AF4: 5.84 | AG4: 6.35
A5: HWS-1105H8-E | B5: 8.04 | C5: 10.46 | D5: 14.73 | E5: 16.39 | F5: 4.83 | G5: 6.27 | H5: 8.84 | I5: 9.83 | J5: 4.06 | K5: 4.67 | L5: 4.42 | M5: 4.92 | N5: 4.06 | O5: 4.67 | P5: 2.69 | Q5: 3 | R5: 2.79 | S5: 3.61 | T5: 4.69 | U5: 5.23 | V5: 2.89 | W5: 3.73 | X5: 4.85 | Y5: 5.42 | Z5: 2.94 | AA5: 3.86 | AB5: 5.3 | AC5: 5.97 | AD5: 2.94 | AE5: 3.86 | AF5: 6.04 | AG5: 6.88
A6: HWS-1405H8-E | B6: 8.64 | C6: 11.02 | D6: 13.45 | E6: 17.86 | F6: 5.18 | G6: 6.61 | H6: 8.07 | I6: 10.71 | J6: 4.06 | K6: 4.62 | L6: 4.04 | M6: 5.36 | N6: 4.06 | O6: 4.62 | P6: 2.48 | Q6: 3.29 | R6: 2.76 | S6: 3.44 | T6: 3.99 | U6: 5.05 | V6: 2.98 | W6: 3.7 | X6: 4.2 | Y6: 5.31 | Z6: 3.01 | AA6: 3.85 | AB6: 4.81 | AC6: 6.05 | AD6: 3.01 | AE6: 3.85 | AF6: 5.34 | AG6: 6.71
A7: HWS-1605H8-E | B7: 9.05 | C7: 11.61 | D7: 14.3 | E7: 18.68 | F7: 5.43 | G7: 6.97 | H7: 8.58 | I7: 11.21 | J7: 4.05 | K7: 4.62 | L7: 4.29 | M7: 5.61 | N7: 4.05 | O7: 4.62 | P7: 2.52 | Q7: 3.29 | R7: 2.67 | S7: 3.36 | T7: 3.92 | U7: 4.81 | V7: 2.81 | W7: 3.63 | X7: 4.23 | Y7: 5.05 | Z7: 2.95 | AA7: 3.8 | AB7: 4.54 | AC7: 5.56 | AD7: 2.95 | AE7: 3.8 | AF7: 4.66 | AG7: 5.71
A8: HWS-P805HR-E | B8: 11.92 | C8: 15.19 | D8: 16.92 | E8: 19.06 | F8: 7.15 | G8: 9.11 | H8: 10.15 | I8: 11.44 | J8: 4.14 | K8: 5.27 | L8: 5.08 | M8: 5.72 | N8: 4.32 | O8: 5.50 | P8: 2.07 | Q8: 2.52 | R8: 2.92 | S8: 3.53 | T8: 3.98 | U8: 4.76 | V8: 3.39 | W8: 4.09 | X8: 4.63 | Y8: 5.51 | Z8: 3.47 | AA8: 4.19 | AB8: 4.42 | AC8: 5.37 | AD8: 3.24 | AE8: 3.91 | AF8: 3.92 | AG8: 5.07
A9: HWS-P1105HR-E | B9: 12.79 | C9: 15.67 | D9: 18.05 | E9: 19.54 | F9: 7.68 | G9: 9.40 | H9: 10.83 | I9: 11.72 | J9: 4.64 | K9: 5.68 | L9: 5.41 | M9: 5.86 | N9: 4.64 | O9: 5.68 | P9: 2.21 | Q9: 2.58 | R9: 2.94 | S9: 3.61 | T9: 4.20 | U9: 4.87 | V9: 3.41 | W9: 4.18 | X9: 4.88 | Y9: 5.62 | Z9: 3.26 | AA9: 4.00 | AB9: 4.67 | AC9: 5.48 | AD9: 3.26 | AE9: 4.00 | AF9: 4.14 | AG9: 5.16
A10: HWS-P805H8R-E | B10: 10.82 | C10: 15.58 | D10: 18.06 | E10: 19.49 | F10: 6.49 | G10: 9.35 | H10: 10.84 | I10: 11.69 | J10: 4.14 | K10: 5.27 | L10: 5.42 | M10: 5.85 | N10: 4.14 | O10: 5.27 | P10: 2.07 | Q10: 2.52 | R10: 2.91 | S10: 3.91 | T10: 3.96 | U10: 4.39 | V10: 3.23 | W10: 4.05 | X10: 3.93 | Y10: 4.67 | Z10: 3.43 | AA10: 4.14 | AB10: 3.90 | AC10: 4.89 | AD10: 3.43 | AE10: 4.14 | AF10: 3.88 | AG10: 5.01
A11: HWS-P1105H8R-E | B11: 11.63 | C11: 16.48 | D11: 18.00 | E11: 22.49 | F11: 6.98 | G11: 9.89 | H11: 10.80 | I11: 13.50 | J11: 4.64 | K11: 5.68 | L11: 5.40 | M11: 6.75 | N11: 4.64 | O11: 5.68 | P11: 2.21 | Q11: 2.58 | R11: 2.75 | S11: 3.46 | T11: 4.01 | U11: 4.30 | V11: 3.07 | W11: 3.80 | X11: 4.05 | Y11: 4.66 | Z11: 3.23 | AA11: 3.96 | AB11: 4.08 | AC11: 4.94 | AD11: 3.23 | AE11: 3.96 | AF11: 4.10 | AG11: 5.11
A12: HWS-P1405H8R-E | B12: 13.44 | C12: 18.17 | D12: 21.10 | E12: 25.18 | F12: 8.07 | G12: 10.90 | H12: 12.66 | I12: 15.11 | J12: 4.64 | K12: 5.68 | L12: 6.33 | M12: 7.55 | N12: 4.64 | O12: 5.68 | P12: 2.21 | Q12: 2.58 | R12: 2.59 | S12: 3.23 | T12: 3.72 | U12: 4.26 | V12: 2.98 | W12: 3.65 | X12: 3.89 | Y12: 4.63 | Z12: 3.23 | AA12: 3.96 | AB12: 4.02 | AC12: 4.92 | AD12: 3.23 | AE12: 3.96 | AF12: 4.10 | AG12: 5.11
A13: HWT-401HW-E | B13: 4.8 | C13: 6.42 | D13: 7.25 | E13: 8.42 | F13: 3.03 | G13: 3.56 | H13: 4.12 | I13: 4.68 | J13: 1.61 | K13: 1.67 | L13: 2.12 | M13: 2.44 | N13: 1.61 | O13: 1.04 | P13: 0.79 | Q13: 0.94 | R13: 3.22 | S13: 4.22 | T13: 4.87 | U13: 5.69 | V13: 3.18 | W13: 4.34 | X13: 5.35 | Y13: 6.16 | Z13: 2.82 | AA13: 3.88 | AB13: 5.08 | AC13: 5.67 | AD13: 2.82 | AE13: 3.47 | AF13: 3.43 | AG13: 4.48
A14: HWT-601HW-E | B14: 6.06 | C14: 6.42 | D14: 7.25 | E14: 8.42 | F14: 3.52 | G14: 3.56 | H14: 4.12 | I14: 4.68 | J14: 1.61 | K14: 1.67 | L14: 2.13 | M14: 2.44 | N14: 1.61 | O14: 1.04 | P14: 0.8 | Q14: 0.94 | R14: 3.12 | S14: 4.22 | T14: 4.87 | U14: 5.69 | V14: 2.94 | W14: 4.34 | X14: 5.35 | Y14: 6.16 | Z14: 2.82 | AA14: 3.88 | AB14: 5.1 | AC14: 5.67 | AD14: 2.82 | AE14: 3.47 | AF14: 3.48 | AG14: 4.48
A15: HWT-801HW-E | B15: 8.11 | C15: 9.24 | D15: 11.9 | E15: 13.01 | F15: 4.67 | G15: 5.43 | H15: 7.06 | I15: 8 | J15: 2.52 | K15: 2.58 | L15: 3.43 | M15: 4.02 | N15: 2.52 | O15: 2.58 | P15: 1.01 | Q15: 1.28 | R15: 2.82 | S15: 3.72 | T15: 4.54 | U15: 4.95 | V15: 3.11 | W15: 3.81 | X15: 4.44 | Y15: 5.66 | Z15: 3.19 | AA15: 4.09 | AB15: 4.2 | AC15: 5.78 | AD15: 3.19 | AE15: 4.09 | AF15: 3.35 | AG15: 4.57
A16: HWT-1101HW-E | B16: 9.1 | C16: 11.46 | D16: 13.24 | E16: 14.28 | F16: 5.57 | G16: 7.05 | H16: 7.8 | I16: 8.26 | J16: 2.52 | K16: 3.73 | L16: 3.72 | M16: 4.02 | N16: 2.52 | O16: 2.63 | P16: 1.01 | Q16: 1.28 | R16: 2.67 | S16: 3.54 | T16: 4.2 | U16: 4.61 | V16: 2.92 | W16: 3.62 | X16: 4.14 | Y16: 5.47 | Z16: 3.19 | AA16: 3.83 | AB16: 3.99 | AC16: 5.78 | AD16: 3.19 | AE16: 4.05 | AF16: 3.36 | AG16: 4.57
A17: HWT-1401HW-E | B17: 13.05 | C17: 16.13 | D17: 18.39 | E17: 20.35 | F17: 7.83 | G17: 9.14 | H17: 10.38 | I17: 11.13 | J17: 4.72 | K17: 5.34 | L17: 5.62 | M17: 5 | N17: 4.72 | O17: 5.34 | P17: 2.44 | Q17: 2.96 | R17: 2.88 | S17: 3.49 | T17: 3.89 | U17: 4.34 | V17: 2.97 | W17: 4.11 | X17: 4.77 | Y17: 5.39 | Z17: 2.9 | AA17: 4.2 | AB17: 4.54 | AC17: 5.18 | AD17: 2.9 | AE17: 4.2 | AF17: 4 | AG17: 4.93
A18: HWT-801H8W-E | B18: 8.23 | C18: 10.66 | D18: 12.27 | E18: 13.25 | F18: 4.94 | G18: 6.4 | H18: 7.36 | I18: 7.95 | J18: 4.21 | K18: 5.33 | L18: 4.91 | M18: 5.3 | N18: 4.21 | O18: 5.33 | P18: 2.65 | Q18: 2.86 | R18: 3.19 | S18: 3.81 | T18: 4.58 | U18: 5 | V18: 3.08 | W18: 4.13 | X18: 5.05 | Y18: 5.91 | Z18: 2.98 | AA18: 4.08 | AB18: 4.6 | AC18: 5.5 | AD18: 2.98 | AE18: 4.08 | AF18: 4.05 | AG18: 4.87
A19: HWT-1101H8W-E | B19: 10.49 | C19: 13.58 | D19: 15.5 | E19: 16.62 | F19: 6.29 | G19: 8.15 | H19: 9.3 | I19: 9.97 | J19: 4.14 | K19: 5.43 | L19: 6.2 | M19: 6.65 | N19: 4.14 | O19: 5.24 | P19: 2.58 | Q19: 2.77 | R19: 3.25 | S19: 3.8 | T19: 4.23 | U19: 4.61 | V19: 3.17 | W19: 4.11 | X19: 4.93 | Y19: 5.71 | Z19: 2.97 | AA19: 4.08 | AB19: 4.33 | AC19: 5.18 | AD19: 2.97 | AE19: 4.08 | AF19: 4 | AG19: 4.8
A20: HWT-1401H8W-E | B20: 13.05 | C20: 16.13 | D20: 18.39 | E20: 20.35 | F20: 7.83 | G20: 9.68 | H20: 11.03 | I20: 12.21 | J20: 4.29 | K20: 5.18 | L20: 5.52 | M20: 6.11 | N20: 4.29 | O20: 5.18 | P20: 2.55 | Q20: 2.82 | R20: 2.88 | S20: 3.49 | T20: 3.89 | U20: 4.34 | V20: 3.18 | W20: 4.03 | X20: 4.75 | Y20: 5.41 | Z20: 3 | AA20: 4.07 | AB20: 5.01 | AC20: 5.93 | AD20: 3 | AE20: 4.07 | AF20: 3.98 | AG20: 4.84

Sheet 45°
A2: Capacità (kW) | B2: Pt 100%-7 | C2: Pt 100% 2 | D2: Pt 100% 7 | E2: Pt 100% 12 | F2: Pt 60%-7 | G2: Pt 60%2 | H2: Pt 60% 7 | I2: Pt 60% 12 | J2: Pt 30%-7 | K2: Pt 30% 2 | L2: Pt 30% 7 | M2: Pt 30% 12 | N2: Pt 10%-7 | O2: Pt 10% 2 | P2: Pt 10% 7 | Q2: Pt 10% 12 | R2: COP 100%-7 | S2: COP 100% 2 | T2: COP 100% 7 | U2: COP 100% 12 | V2: COP 60%-7 | W2: COP 60% 2 | X2: COP 60% 7 | Y2: COP 60% 12 | Z2: COP 30%-7 | AA2: COP 30% 2 | AB2: COP 30% 7 | AC2: COP 30% 12 | AD2: COP 10%-7 | AE2: COP 10% 2 | AF2: COP 10% 7 | AG2: COP 10% 12
A3: HWS-805H-E | B3: 4.82 | C3: 6.34 | D3: 8.13 | E3: 8.99 | F3: 2.89 | G3: 3.8 | H3: 4.87 | I3: 5.39 | J3: 2.05 | K3: 2.15 | L3: 2.75 | M3: 3.04 | N3: 2.05 | O3: 2.15 | P3: 2.75 | Q3: 3.04 | R3: 1.97 | S3: 2.5 | T3: 3.36 | U3: 3.8 | V3: 1.99 | W3: 2.53 | X3: 3.4 | Y3: 3.84 | Z3: 2.02 | AA3: 2.6 | AB3: 3.5 | AC3: 3.92 | AD3: 2.02 | AE3: 2.6 | AF3: 3.5 | AG3: 3.92
A4: HWS-1405H-E | B4: 7.64 | C4: 9.43 | D4: 14.26 | E4: 15.83 | F4: 4.58 | G4: 5.65 | H4: 8.55 | I4: 9.5 | J4: 3.61 | K4: 3.92 | L4: 5.93 | M4: 6.58 | N4: 3.61 | O4: 3.92 | P4: 5.93 | Q4: 6.58 | R4: 1.96 | S4: 2.49 | T4: 3.56 | U4: 3.94 | V4: 2.01 | W4: 2.57 | X4: 3.66 | Y4: 4.06 | Z4: 2.1 | AA4: 2.7 | AB4: 3.87 | AC4: 4.28 | AD4: 2.1 | AE4: 2.7 | AF4: 3.87 | AG4: 4.26
A5: HWS-1105H8-E | B5: 7.81 | C5: 9.81 | D5: 13.93 | E5: 15.64 | F5: 4.68 | G5: 5.88 | H5: 8.36 | I5: 9.38 | J5: 3.92 | K5: 4.33 | L5: 6.15 | M5: 6.91 | N5: 3.92 | O5: 4.33 | P5: 6.15 | Q5: 6.91 | R5: 2.15 | S5: 2.73 | T5: 3.7 | U5: 4.1 | V5: 2.16 | W5: 2.75 | X5: 3.73 | Y5: 4.12 | Z5: 2.14 | AA5: 2.72 | AB5: 3.68 | AC5: 4.11 | AD5: 2.14 | AE5: 2.72 | AF5: 3.68 | AG5: 4.11
A6: HWS-1405H8-E | B6: 8.27 | C6: 10.31 | D6: 14.3 | E6: 17.14 | F6: 4.96 | G6: 6.19 | H6: 8.57 | I6: 10.28 | J6: 3.73 | K6: 4.08 | L6: 5.66 | M6: 6.78 | N6: 3.73 | O6: 4.08 | P6: 5.66 | Q6: 6.78 | R6: 2.11 | S6: 2.65 | T6: 3.42 | U6: 3.99 | V6: 2.21 | W6: 2.79 | X6: 3.6 | Y6: 4.2 | Z6: 2.29 | AA6: 2.96 | AB6: 3.81 | AC6: 4.44 | AD6: 2.29 | AE6: 2.96 | AF6: 3.81 | AG6: 4.44
A7: HWS-1605H8-E | B7: 9.05 | C7: 11.61 | D7: 14.3 | E7: 18.68 | F7: 5.43 | G7: 6.97 | H7: 8.58 | I7: 11.21 | J7: 4.05 | K7: 4.62 | L7: 4.29 | M7: 5.61 | N7: 4.05 | O7: 4.62 | P7: 2.52 | Q7: 3.29 | R7: 2.67 | S7: 3.36 | T7: 3.92 | U7: 4.81 | V7: 2.81 | W7: 3.53 | X7: 4.13 | Y7: 5.05 | Z7: 2.95 | AA7: 3.8 | AB7: 4.54 | AC7: 5.56 | AD7: 2.95 | AE7: 3.8 | AF7: 4.66 | AG7: 5.71
A8: HWS-P805HR-E | B8: 10.16 | C8: 12.69 | D8: 14.00 | E8: 15.66 | F8: 6.10 | G8: 7.61 | H8: 8.40 | I8: 9.40 | J8: 4.52 | K8: 5.50 | L8: 5.67 | M8: 6.69 | N8: 4.48 | O8: 5.59 | P8: 5.67 | Q8: 6.69 | R8: 2.44 | S8: 2.97 | T8: 3.33 | U8: 3.95 | V8: 2.53 | W8: 3.08 | X8: 3.51 | Y8: 4.20 | Z8: 2.52 | AA8: 3.13 | AB8: 3.58 | AC8: 4.30 | AD8: 2.56 | AE8: 3.13 | AF8: 3.58 | AG8: 4.30
A9: HWS-P1105HR-E | B9: 10.61 | C9: 13.03 | D9: 14.74 | E9: 16.01 | F9: 6.36 | G9: 7.82 | H9: 8.84 | I9: 9.61 | J9: 4.67 | K9: 5.74 | L9: 5.97 | M9: 6.82 | N9: 4.67 | O9: 5.74 | P9: 5.97 | Q9: 6.82 | R9: 2.45 | S9: 3.03 | T9: 3.49 | U9: 4.04 | V9: 2.55 | W9: 3.14 | X9: 3.67 | Y9: 4.28 | Z9: 2.58 | AA9: 3.19 | AB9: 3.74 | AC9: 4.38 | AD9: 2.58 | AE9: 3.19 | AF9: 3.74 | AG9: 4.38
A10: HWS-P805H8R-E | B10: 10.40 | C10: 14.01 | D10: 16.32 | E10: 17.59 | F10: 6.24 | G10: 8.40 | H10: 9.79 | I10: 10.56 | J10: 4.52 | K10: 5.50 | L10: 5.67 | M10: 6.69 | N10: 4.52 | O10: 5.50 | P10: 5.67 | Q10: 6.69 | R10: 2.44 | S10: 3.15 | T10: 3.55 | U10: 3.65 | V10: 2.48 | W10: 3.11 | X10: 3.54 | Y10: 4.04 | Z10: 2.50 | AA10: 3.10 | AB10: 3.54 | AC10: 4.25 | AD10: 2.50 | AE10: 3.10 | AF10: 3.54 | AG10: 4.25
A11: HWS-P1105H8R-E | B11: 10.52 | C11: 15.25 | D11: 16.85 | E11: 20.72 | F11: 6.31 | G11: 9.15 | H11: 10.11 | I11: 12.43 | J11: 4.67 | K11: 5.74 | L11: 5.97 | M11: 6.82 | N11: 4.67 | O11: 5.74 | P11: 5.97 | Q11: 6.82 | R11: 2.35 | S11: 2.80 | T11: 3.13 | U11: 3.47 | V11: 2.48 | W11: 3.04 | X11: 3.48 | Y11: 3.99 | Z11: 2.56 | AA11: 3.16 | AB11: 3.70 | AC11: 4.34 | AD11: 2.56 | AE11: 3.16 | AF11: 3.70 | AG11: 4.34
A12: HWS-P1405H8R-E | B12: 12.90 | C12: 16.09 | D12: 19.04 | E12: 23.20 | F12: 7.74 | G12: 9.66 | H12: 11.42 | I12: 13.92 | J12: 4.67 | K12: 5.74 | L12: 5.97 | M12: 6.96 | N12: 4.67 | O12: 5.74 | P12: 5.97 | Q12: 6.82 | R12: 2.32 | S12: 2.68 | T12: 3.03 | U12: 3.44 | V12: 2.47 | W12: 2.97 | X12: 3.42 | Y12: 3.95 | Z12: 2.56 | AA12: 3.16 | AB12: 3.70 | AC12: 4.33 | AD12: 2.56 | AE12: 3.16 | AF12: 3.70 | AG12: 4.34
A13: HWT-401HW-E | B13: 4.48 | C13: 5.99 | D13: 6.97 | E13: 8.09 | F13: 2.82 | G13: 3.33 | H13: 3.81 | I13: 4.48 | J13: 1.44 | K13: 2.03 | L13: 2.44 | M13: 2.86 | N13: 1.44 | O13: 2.03 | P13: 2.44 | Q13: 2.86 | R13: 2.59 | S13: 3.27 | T13: 3.83 | U13: 4.4 | V13: 2.51 | W13: 3.3 | X13: 3.89 | Y13: 4.57 | Z13: 2.09 | AA13: 3.08 | AB13: 3.59 | AC13: 4.33 | AD13: 2.12 | AE13: 3.08 | AF13: 3.59 | AG13: 4.33
A14: HWT-601HW-E | B14: 5.8 | C14: 5.99 | D14: 6.97 | E14: 8.09 | F14: 3.53 | G14: 3.33 | H14: 3.81 | I14: 4.48 | J14: 1.44 | K14: 2.03 | L14: 2.44 | M14: 2.86 | N14: 1.44 | O14: 2.03 | P14: 2.44 | Q14: 2.86 | R14: 2.58 | S14: 3.27 | T14: 3.83 | U14: 4.4 | V14: 2.53 | W14: 3.3 | X14: 3.89 | Y14: 4.57 | Z14: 2.09 | AA14: 3.03 | AB14: 3.59 | AC14: 4.33 | AD14: 2.09 | AE14: 3.03 | AF14: 3.59 | AG14: 4.33
A15: HWT-801HW-E | B15: 8 | C15: 10.26 | D15: 11.75 | E15: 12.77 | F15: 4.51 | G15: 6.02 | H15: 6.68 | I15: 7.76 | J15: 2.33 | K15: 2.6 | L15: 2.88 | M15: 3.24 | N15: 2.33 | O15: 2.6 | P15: 2.88 | Q15: 3.24 | R15: 2.37 | S15: 3.04 | T15: 3.47 | U15: 3.79 | V15: 2.52 | W15: 3.28 | X15: 3.51 | Y15: 4.33 | Z15: 2.38 | AA15: 2.95 | AB15: 3.67 | AC15: 4.26 | AD15: 2.38 | AE15: 2.95 | AF15: 3.67 | AG15: 4.26
A16: HWT-1101HW-E | B16: 8.44 | C16: 10.66 | D16: 12.41 | E16: 13.26 | F16: 5.24 | G16: 6.1 | H16: 7.64 | I16: 7.86 | J16: 2.33 | K16: 2.6 | L16: 4.07 | M16: 4.33 | N16: 2.33 | O16: 2.6 | P16: 2.88 | Q16: 3.24 | R16: 2.29 | S16: 2.97 | T16: 3.35 | U16: 3.74 | V16: 2.42 | W16: 3.25 | X16: 3.40 | Y16: 4.30 | Z16: 2.38 | AA16: 2.95 | AB16: 3.54 | AC16: 4.45 | AD16: 2.38 | AE16: 2.95 | AF16: 3.67 | AG16: 4.26
A17: HWT-1401HW-E | B17: 11.94 | C17: 14.77 | D17: 16.3 | E17: 18.11 | F17: 7.51 | G17: 8.67 | H17: 9.67 | I17: 10.85 | J17: 4.42 | K17: 5.85 | L17: 6.02 | M17: 6.96 | N17: 4.42 | O17: 5.85 | P17: 6.02 | Q17: 6.96 | R17: 2.47 | S17: 3.15 | T17: 3.47 | U17: 3.81 | V17: 2.55 | W17: 3.33 | X17: 3.76 | Y17: 4.3 | Z17: 2.31 | AA17: 3.32 | AB17: 3.88 | AC17: 4.55 | AD17: 2.31 | AE17: 3.32 | AF17: 3.88 | AG17: 4.55
A18: HWT-801H8W-E | B18: 8.12 | C18: 10.51 | D18: 12.02 | E18: 12.96 | F18: 4.87 | G18: 6.31 | H18: 7.21 | I18: 7.78 | J18: 4.15 | K18: 5.37 | L18: 6.01 | M18: 6.48 | N18: 4.15 | O18: 5.37 | P18: 6.01 | Q18: 6.48 | R18: 2.64 | S18: 3.22 | T18: 3.72 | U18: 4.03 | V18: 2.45 | W18: 3.3 | X18: 3.82 | Y18: 4.49 | Z18: 2.31 | AA18: 3.28 | AB18: 3.8 | AC18: 4.62 | AD18: 2.31 | AE18: 3.28 | AF18: 3.8 | AG18: 4.62
A19: HWT-1101H8W-E | B19: 10.33 | C19: 13.22 | D19: 15.24 | E19: 16.32 | F19: 6.2 | G19: 7.93 | H19: 9.14 | I19: 9.79 | J19: 4.08 | K19: 5.22 | L19: 5.88 | M19: 6.3 | N19: 4.08 | O19: 5.22 | P19: 5.88 | Q19: 6.3 | R19: 2.66 | S19: 3.21 | T19: 3.56 | U19: 3.82 | V19: 2.59 | W19: 3.3 | X19: 3.79 | Y19: 4.32 | Z19: 2.29 | AA19: 3.28 | AB19: 3.79 | AC19: 4.64 | AD19: 2.29 | AE19: 3.28 | AF19: 3.79 | AG19: 4.64
A20: HWT-1401H8W-E | B20: 12.93 | C20: 16.17 | D20: 18.14 | E20: 20.14 | F20: 7.76 | G20: 9.7 | H20: 10.88 | I20: 12.08 | J20: 4,.25 | K20: 5.31 | L20: 5.83 | M20: 6.47 | N20: 4.25 | O20: 5.31 | P20: 5.83 | Q20: 6.47 | R20: 2.56 | S20: 3.02 | T20: 3.32 | U20: 3.68 | V20: 2.65 | W20: 3.28 | X20: 3.73 | Y20: 4.15 | Z20: 2.33 | AA20: 3.28 | AB20: 3.79 | AC20: 4.62 | AD20: 2.33 | AE20: 3.28 | AF20: 3.79 | AG20: 4.62

Sheet 55°
A2: Capacità (kW) | B2: Pt 100%-7 | C2: Pt 100% 2 | D2: Pt 100% 7 | E2: Pt 100% 12 | F2: Pt 60%-7 | G2: Pt 60%2 | H2: Pt 60% 7 | I2: Pt 60% 12 | J2: Pt 30%-7 | K2: Pt 30% 2 | L2: Pt 30% 7 | M2: Pt 30% 12 | N2: Pt 10%-7 | O2: Pt 10% 2 | P2: Pt 10% 7 | Q2: Pt 10% 12 | R2: COP 100%-7 | S2: COP 100% 2 | T2: COP 100% 7 | U2: COP 100% 12 | V2: COP 60%-7 | W2: COP 60% 2 | X2: COP 60% 7 | Y2: COP 60% 12 | Z2: COP 30%-7 | AA2: COP 30% 2 | AB2: COP 30% 7 | AC2: COP 30% 12 | AD2: COP 10%-7 | AE2: COP 10% 2 | AF2: COP 10% 7 | AG2: COP 10% 12
A3: HWS-805H-E | B3: - | C3: 6.24 | D3: 7.7 | E3: 8.67 | F3: - | G3: 3.74 | H3: 4.62 | I3: 5.2 | J3: - | K3: 3.43 | L3: 4.23 | M3: 4.77 | N3: - | O3: 3.43 | P3: 4.23 | Q3: 4.77 | R3: - | S3: 2 | T3: 2.74 | U3: 3.06 | V3: - | W3: 1.96 | X3: 2.67 | Y3: 3 | Z3: - | AA3: 1.94 | AB3: 2.66 | AC3: 2.99 | AD3: - | AE3: 1.94 | AF3: 2.66 | AG3: 2.99
A4: HWS-1405H-E | B4: - | C4: 8.3 | D4: 11.67 | E4: 12.96 | F4: - | G4: 4.98 | H4: 7.01 | I4: 7.77 | J4: - | K4: 4.32 | L4: 5.26 | M4: 5.85 | N4: - | O4: 4.32 | P4: 5.26 | Q4: 5.85 | R4: - | S4: 2.02 | T4: 2.87 | U4: 3.19 | V4: - | W4: 1.97 | X4: 2.8 | Y4: 3.11 | Z4: - | AA4: 2.01 | AB4: 2.84 | AC4: 3.16 | AD4: - | AE4: 2.01 | AF4: 2.84 | AG4: 3.16
A5: HWS-1105H8-E | B5: - | C5: 8.86 | D5: 12.56 | E5: 14.57 | F5: - | G5: 5.31 | H5: 7.54 | I5: 8.74 | J5: - | K5: 4.35 | L5: 5.41 | M5: 6.27 | N5: - | O5: 4.35 | P5: 5.41 | Q5: 6.27 | R5: - | S5: 2.14 | T5: 2.88 | U5: 3.25 | V5: - | W5: 2.1 | X5: 2.82 | Y5: 3.19 | Z5: - | AA5: 2.08 | AB5: 2.77 | AC5: 3.12 | AD5: - | AE5: 2.08 | AF5: 2.77 | AG5: 3.12
A6: HWS-1405H8-E | B6: - | C6: 9.3 | D6: 13.64 | E6: 15.81 | F6: - | G6: 5.58 | H6: 8.19 | I6: 9.48 | J6: - | K6: 4.25 | L6: 5.4 | M6: 6.26 | N6: - | O6: 4.25 | P6: 5.4 | Q6: 6.26 | R6: - | S6: 2.06 | T6: 2.81 | U6: 3.17 | V6: - | W6: 2.1 | X6: 2.82 | Y6: 3.18 | Z6: - | AA6: 2.14 | AB6: 2.86 | AC6: 3.24 | AD6: - | AE6: 2.14 | AF6: 2.86 | AG6: 3.24
A7: HWS-1605H8-E | B7: - | C7: 9.65 | D7: 14.12 | E7: 16.53 | F7: - | G7: 5.79 | H7: 8.47 | I7: 9.92 | J7: - | K7: 4.22 | L7: 5.35 | M7: 6.27 | N7: - | O7: 4.22 | P7: 5.35 | Q7: 6.27 | R7: - | S7: 2.04 | T7: 2.7 | U7: 3.09 | V7: - | W7: 2.05 | X7: 2.69 | Y7: 3.11 | Z7: - | AA7: 2.14 | AB7: 2.84 | AC7: 3.24 | AD7: - | AE7: 2.14 | AF7: 2.84 | AG7: 3.24
A8: HWS-P805HR-E | B8: 8.40 | C8: 10.18 | D8: 11.08 | E8: 12.26 | F8: 5.04 | G8: 6.11 | H8: 6.65 | I8: 7.36 | J8: 4.09 | K8: 4.80 | L8: 5.20 | M8: 6.11 | N8: 4.18 | O8: 5.06 | P8: 5.20 | Q8: 6.11 | R8: 1.95 | S8: 2.41 | T8: 2.68 | U8: 3.14 | V8: 1.93 | W8: 2.39 | X8: 2.66 | Y8: 3.12 | Z8: 1.85 | AA8: 2.31 | AB8: 2.63 | AC8: 3.11 | AD8: 1.91 | AE8: 2.37 | AF8: 2.63 | AG8: 3.11
A9: HWS-P1105HR-E | B9: 8.42 | C9: 10.38 | D9: 11.43 | E9: 12.49 | F9: 5.05 | G9: 6.23 | H9: 6.86 | I9: 7.49 | J9: 4.19 | K9: 5.16 | L9: 5.36 | M9: 6.22 | N9: 4.19 | O9: 5.16 | P9: 5.36 | Q9: 6.22 | R9: 1.96 | S9: 2.45 | T9: 2.77 | U9: 3.03 | V9: 3.21 | W9: 1.94 | X9: 2.43 | Y9: 2.74 | Z9: 3.01 | AA9: 3.18 | AB9: 1.93 | AC9: 2.41 | AD9: 2.72 | AE9: 2.99 | AF9: 3.17 | AG9: 1.93
A10: HWS-P805H8R-E | B10: 9.41 | C10: 12.43 | D10: 15.04 | E10: 15.70 | F10: 5.65 | G10: 7.46 | H10: 9.03 | I10: 9.42 | J10: 4.09 | K10: 4.80 | L10: 5.20 | M10: 6.11 | N10: 4.09 | O10: 4.80 | P10: 5.20 | Q10: 6.11 | R10: 1.93 | S10: 2.38 | T10: 2.84 | U10: 2.91 | V10: 1.89 | W10: 2.35 | X10: 2.65 | Y10: 3.12 | Z10: 1.83 | AA10: 2.28 | AB10: 2.61 | AC10: 3.07 | AD10: 1.83 | AE10: 2.28 | AF10: 2.61 | AG10: 3.07
A11: HWS-P1105H8R-E | B11: 10.93 | C11: 14.02 | D11: 15.70 | E11: 18.93 | F11: 6.56 | G11: 8.41 | H11: 9.42 | I11: 11.36 | J11: 4.19 | K11: 5.16 | L11: 5.36 | M11: 6.22 | N11: 4.19 | O11: 5.16 | P11: 5.36 | Q11: 6.22 | R11: 1.94 | S11: 2.13 | T11: 2.49 | U11: 2.81 | V11: 1.92 | W11: 2.29 | X11: 2.61 | Y11: 3.01 | Z11: 1.91 | AA11: 2.38 | AB11: 2.69 | AC11: 3.13 | AD11: 1.91 | AE11: 2.38 | AF11: 2.69 | AG11: 3.13
A12: HWS-P1405H8R-E | B12: 12.37 | C12: 14.02 | D12: 16.98 | E12: 20.06 | F12: 7.42 | G12: 8.41 | H12: 10.19 | I12: 12.04 | J12: 4.19 | K12: 5.16 | L12: 5.36 | M12: 6.22 | N12: 4.19 | O12: 5.16 | P12: 5.36 | Q12: 6.22 | R12: 1.95 | S12: 2.13 | T12: 2.47 | U12: 2.79 | V12: 1.94 | W12: 2.42 | X12: 2.74 | Y12: 3.18 | Z12: 1.91 | AA12: 2.38 | AB12: 2.96 | AC12: 3.13 | AD12: 1.91 | AE12: 2.38 | AF12: 2.69 | AG12: 3.13
A13: HWT-401HW-E | B13: 4.31 | C13: 5.52 | D13: 6.51 | E13: 7.62 | F13: 3.4 | G13: 3.46 | H13: 3.56 | I13: 4.23 | J13: 3.4 | K13: 2.54 | L13: 2.22 | M13: 2.65 | N13: 3.4 | O13: 2.54 | P13: 2.22 | Q13: 2.65 | R13: 2.12 | S13: 2.54 | T13: 3.03 | U13: 3.48 | V13: 1.99 | W13: 2.48 | X13: 2.99 | Y13: 3.55 | Z13: 1.99 | AA13: 2.35 | AB13: 2.64 | AC13: 2.82 | AD13: 1.99 | AE13: 2.35 | AF13: 2.64 | AG13: 2.82
A14: HWT-601HW-E | B14: 5.42 | C14: 6.1 | D14: 7.53 | E14: 8.31 | F14: 3.4 | G14: 3.58 | H14: 4.35 | I14: 5.05 | J14: 3.4 | K14: 2.54 | L14: 2.22 | M14: 2.65 | N14: 3.4 | O14: 2.54 | P14: 2.22 | Q14: 2.65 | R14: 5.42 | S14: 6.1 | T14: 7.53 | U14: 8.31 | V14: 3.4 | W14: 3.58 | X14: 4.35 | Y14: 5.05 | Z14: 3.4 | AA14: 2.54 | AB14: 2.22 | AC14: 2.65 | AD14: 3.4 | AE14: 2.54 | AF14: 2.22 | AG14: 2.65
A15: HWT-801HW-E | B15: 7.35 | C15: 9.5 | D15: 9.96 | E15: 11.29 | F15: 4.28 | G15: 5.62 | H15: 5.91 | I15: 6.21 | J15: 2.14 | K15: 2.74 | L15: 2.88 | M15: 3.02 | N15: 2.14 | O15: 2.74 | P15: 2.88 | Q15: 3.02 | R15: 2.04 | S15: 2.67 | T15: 2.87 | U15: 3.25 | V15: 2.08 | W15: 2.68 | X15: 2.78 | Y15: 3.59 | Z15: 1.83 | AA15: 2.23 | AB15: 2.56 | AC15: 2.96 | AD15: 1.83 | AE15: 2.23 | AF15: 2.56 | AG15: 2.96
A16: HWT-1101HW-E | B16: 7.35 | C16: 9.5 | D16: 10.17 | E16: 11.29 | F16: 4.28 | G16: 5.62 | H16: 6 | I16: 6.21 | J16: 2.14 | K16: 2.74 | L16: 2.88 | M16: 3.02 | N16: 2.14 | O16: 2.74 | P16: 2.88 | Q16: 3.02 | R16: 2.04 | S16: 2.67 | T16: 2.81 | U16: 3.25 | V16: 2.08 | W16: 2.68 | X16: 2.74 | Y16: 3.59 | Z16: 1.83 | AA16: 2.23 | AB16: 2.56 | AC16: 2.96 | AD16: 1.83 | AE16: 2.23 | AF16: 2.56 | AG16: 2.96
A17: HWT-1401HW-E | B17: 10.5 | C17: 12.93 | D17: 14.31 | E17: 15.83 | F17: 6.33 | G17: 8.24 | H17: 8.49 | I17: 9.58 | J17: 4.25 | K17: 5.48 | L17: 5.67 | M17: 6.56 | N17: 4.25 | O17: 5.48 | P17: 5.67 | Q17: 6.56 | R17: 2.18 | S17: 2.76 | T17: 3.06 | U17: 3.38 | V17: 2.06 | W17: 2.68 | X17: 3.07 | Y17: 3.47 | Z17: 1.86 | AA17: 2.53 | AB17: 2.97 | AC17: 3.42 | AD17: 1.86 | AE17: 2.53 | AF17: 2.97 | AG17: 3.42
A18: HWT-801H8W-E | B18: 8 | C18: 10.36 | D18: 11.77 | E18: 12.67 | F18: 4.8 | G18: 6.22 | H18: 7.06 | I18: 7.6 | J18: 4.09 | K18: 5.3 | L18: 5.89 | M18: 6.34 | N18: 4.09 | O18: 5.3 | P18: 5.89 | Q18: 6.34 | R18: 2.24 | S18: 2.78 | T18: 3.11 | U18: 3.34 | V18: 2.03 | W18: 2.62 | X18: 3.05 | Y18: 3.49 | Z18: 1.92 | AA18: 2.53 | AB18: 2.98 | AC18: 3.21 | AD18: 1.92 | AE18: 2.53 | AF18: 2.98 | AG18: 3.39
A19: HWT-1101H8W-E | B19: 10.17 | C19: 12.86 | D19: 14.97 | E19: 16.02 | F19: 6.1 | G19: 7.72 | H19: 8.98 | I19: 9.61 | J19: 4.01 | K19: 5.08 | L19: 5.78 | M19: 6.18 | N19: 4.01 | O19: 5.08 | P19: 5.78 | Q19: 6.18 | R19: 2.24 | S19: 2.75 | T19: 3.06 | U19: 3.24 | V19: 2.15 | W19: 2.71 | X19: 3.11 | Y19: 3.5 | Z19: 1.91 | AA19: 2.5 | AB19: 2.97 | AC19: 3.38 | AD19: 1.91 | AE19: 2.5 | AF19: 2.97 | AG19: 3.38
A20: HWT-1401H8W-E | B20: 12.81 | C20: 16.2 | D20: 17.89 | E20: 19.93 | F20: 7.69 | G20: 8.1 | H20: 8.95 | I20: 9.97 | J20: 4.21 | K20: 5.32 | L20: 5.75 | M20: 6.4 | N20: 4.21 | O20: 5.32 | P20: 5.75 | Q20: 6.4 | R20: 2.3 | S20: 2.66 | T20: 2.89 | U20: 3.19 | V20: 2.21 | W20: 2.77 | X20: 3.12 | Y20: 3.51 | Z20: 1.94 | AA20: 2.53 | AB20: 2.97 | AC20: 3.4 | AD20: 1.94 | AE20: 2.53 | AF20: 2.97 | AG20: 3.4

Sheet 7°
A2: Capacità (kW) | B2: Pt 100%20 | C2: Pt 100% 27 | D2: Pt 100% 30 | E2: Pt 100% 35 | F2: Pt 60%20 | G2: Pt 60%27 | H2: Pt 60% 30 | I2: Pt 60% 35 | J2: Pt 30%20 | K2: Pt 30% 27 | L2: Pt 30% 30 | M2: Pt 30% 35 | N2: Pt 10%20 | O2: Pt 10% 27 | P2: Pt 10% 30 | Q2: Pt 10% 35 | R2: COP 100%20 | S2: COP 100% 27 | T2: COP 100% 30 | U2: COP 100% 35 | V2: COP 60%20 | W2: COP 60% 27 | X2: COP 60% 30 | Y2: COP 60% 35 | Z2: COP 30%20 | AA2: COP 30% 27 | AB2: COP 30% 30 | AC2: COP 30% 35 | AD2: COP 10%20 | AE2: COP 10% 27 | AF2: COP 10% 30 | AG2: COP 10% 35
A3: HWS-805H-E | B3: 7.34 | C3: 7.18 | D3: 7.11 | E3: 7 | F3: 4.41 | G3: 4.31 | H3: 4.27 | I3: 4.2 | J3: 2.2 | K3: 2.9 | L3: 2.86 | M3: 2.82 | N3: 0.92 | O3: 2.9 | P3: 2.86 | Q3: 2.82 | R3: 4.45 | S3: 3.57 | T3: 3.29 | U3: 2.89 | V3: 4.23 | W3: 3.4 | X3: 3.13 | Y3: 2.76 | Z3: 3.82 | AA3: 3.24 | AB3: 2.96 | AC3: 2.62 | AD3: 2.87 | AE3: 3.24 | AF3: 2.96 | AG3: 2.62
A4: HWS-1405H-E | B4: 13.29 | C4: 12.59 | D4: 12.28 | E4: 11.78 | F4: 7.97 | G4: 7.55 | H4: 7.37 | I4: 7.07 | J4: 3.99 | K4: 5.34 | L4: 5.22 | M4: 5 | N4: 1.89 | O4: 5.34 | P4: 5.22 | Q4: 5 | R4: 4.61 | S4: 3.66 | T4: 3.34 | U4: 2.89 | V4: 4.91 | W4: 3.9 | X4: 3.57 | Y4: 3.08 | Z4: 4.58 | AA4: 3.86 | AB4: 3.5 | AC4: 3.04 | AD4: 3.43 | AE4: 3.86 | AF4: 3.5 | AG4: 3.04
A5: HWS-1105H8-E | B5: 11.15 | C5: 10.69 | D5: 10.49 | E5: 10.16 | F5: 6.69 | G5: 6.41 | H5: 6.29 | I5: 6.09 | J5: 3.35 | K5: 5.5 | L5: 5.4 | M5: 5.23 | N5: 2.04 | O5: 5.5 | P5: 5.4 | Q5: 5.23 | R5: 5.32 | S5: 4.12 | T5: 3.73 | U5: 3.21 | V5: 5.66 | W5: 4.4 | X5: 3.97 | Y5: 3.41 | Z5: 5.34 | AA5: 3.98 | AB5: 3.61 | AC5: 3.09 | AD5: 4.06 | AE5: 3.98 | AF5: 3.61 | AG5: 3.09
A6: HWS-1405H8-E | B6: 13.27 | C6: 12.69 | D6: 12.44 | E6: 12.02 | F6: 7.96 | G6: 7.61 | H6: 7.46 | I6: 7.21 | J6: 3.98 | K6: 4.53 | L6: 4.45 | M6: 4.3 | N6: 1.33 | O6: 4.53 | P6: 4.45 | Q6: 4.3 | R6: 4.7 | S6: 3.69 | T6: 3.37 | U6: 2.91 | V6: 5.18 | W6: 4.08 | X6: 3.72 | Y6: 3.22 | Z6: 5.26 | AA6: 3.77 | AB6: 3.44 | AC6: 2.99 | AD6: 4.16 | AE6: 3.77 | AF6: 3.44 | AG6: 2.99
A7: HWS-1605H8-E | B7: 14.39 | C7: 13.67 | D7: 13.36 | E7: 12.84 | F7: 8.64 | G7: 8.2 | H7: 8.01 | I7: 7.71 | J7: 4.31 | K7: 5.19 | L7: 5.07 | M7: 4.88 | N7: 1.78 | O7: 5.19 | P7: 5.07 | Q7: 4.88 | R7: 4.43 | S7: 3.51 | T7: 3.2 | U7: 2.78 | V7: 5.08 | W7: 4.04 | X7: 3.68 | Y7: 3.19 | Z7: 5.45 | AA7: 4.26 | AB7: 3.89 | AC7: 3.35 | AD7: 4.74 | AE7: 4.26 | AF7: 3.89 | AG7: 3.35
A8: HWS-P805HR-E | B8: 7.82 | C8: 7.53 | D8: 7.41 | E8: 7.20 | F8: 4.70 | G8: 4.52 | H8: 4.45 | I8: 4.32 | J8: 2.35 | K8: 3.04 | L8: 2.98 | M8: 2.90 | N8: 0.98 | O8: 3.04 | P8: 2.98 | Q8: 2.90 | R8: 6.00 | S8: 4.51 | T8: 4.05 | U8: 3.44 | V8: 5.71 | W8: 4.29 | X8: 3.85 | Y8: 3.28 | Z8: 5.15 | AA8: 4.08 | AB8: 3.64 | AC8: 3.11 | AD8: 3.87 | AE8: 4.08 | AF8: 3.64 | AG8: 3.11
A9: HWS-P1105HR-E | B9: 11.21 | C9: 10.67 | D9: 10.44 | E9: 10.06 | F9: 6.73 | G9: 6.40 | H9: 6.27 | I9: 6.04 | J9: 3.36 | K9: 5.14 | L9: 5.04 | M9: 4.85 | N9: 1.92 | O9: 5.14 | P9: 5.04 | Q9: 4.85 | R9: 5.42 | S9: 4.06 | T9: 3.64 | U9: 3.08 | V9: 5.76 | W9: 4.33 | X9: 3.88 | Y9: 3.28 | Z9: 5.43 | AA9: 4.31 | AB9: 3.86 | AC9: 3.26 | AD9: 4.54 | AE9: 4.31 | AF9: 3.86 | AG9: 3.26
A10: HWS-P805H8R-E | B10: 7.82 | C10: 7.53 | D10: 7.41 | E10: 7.20 | F10: 4.70 | G10: 4.52 | H10: 4.45 | I10: 4.32 | J10: 2.35 | K10: 3.04 | L10: 2.98 | M10: 2.90 | N10: 0.98 | O10: 3.04 | P10: 2.98 | Q10: 2.90 | R10: 5.94 | S10: 4.46 | T10: 4.01 | U10: 3.40 | V10: 5.66 | W10: 4.25 | X10: 3.81 | Y10: 3.25 | Z10: 5.10 | AA10: 4.04 | AB10: 3.61 | AC10: 3.08 | AD10: 3.84 | AE10: 4.04 | AF10: 3.61 | AG10: 3.08
A11: HWS-P1105H8R-E | B11: 11.21 | C11: 10.67 | D11: 10.44 | E11: 10.06 | F11: 6.73 | G11: 6.40 | H11: 6.27 | I11: 6.04 | J11: 3.36 | K11: 5.14 | L11: 5.04 | M11: 4.85 | N11: 1.92 | O11: 5.14 | P11: 5.04 | Q11: 4.85 | R11: 5.37 | S11: 4.02 | T11: 3.60 | U11: 3.05 | V11: 5.71 | W11: 4.29 | X11: 3.84 | Y11: 3.25 | Z11: 5.37 | AA11: 4.27 | AB11: 3.82 | AC11: 3.23 | AD11: 4.50 | AE11: 4.27 | AF11: 3.82 | AG11: 3.23
A12: HWS-P1405H8R-E | B12: 12.56 | C12: 13.69 | D12: 12.76 | E12: 11.22 | F12: 7.54 | G12: 8.21 | H12: 7.66 | I12: 6.73 | J12: 3.77 | K12: 5.14 | L12: 5.04 | M12: 4.85 | N12: 1.92 | O12: 5.14 | P12: 5.04 | Q12: 4.85 | R12: 4.45 | S12: 3.50 | T12: 3.19 | U12: 2.67 | V12: 4.47 | W12: 3.99 | X12: 3.61 | Y12: 3.06 | Z12: 4.49 | AA12: 4.27 | AB12: 3.82 | AC12: 3.23 | AD12: 4.50 | AE12: 4.27 | AF12: 3.82 | AG12: 3.23
A13: HWT-401HW-E | B13: 5.47 | C13: 5.13 | D13: 4.98 | E13: 4.74 | F13: 3.24 | G13: 3.17 | H13: 3.02 | I13: 3.08 | J13: 1.48 | K13: 1.51 | L13: 1.46 | M13: 1.55 | N13: 0.89 | O13: 0.96 | P13: 0.99 | Q13: 1.04 | R13: 5.31 | S13: 4.28 | T13: 3.92 | U13: 3.41 | V13: 6.16 | W13: 4.58 | X13: 3.99 | Y13: 3.5 | Z13: 6.06 | AA13: 4.05 | AB13: 3.49 | AC13: 2.98 | AD13: 5.93 | AE13: 3.6 | AF13: 3.03 | AG13: 2.6
A14: HWT-601HW-E | B14: 5.72 | C14: 5.54 | D14: 5.37 | E14: 5.33 | F14: 3.24 | G14: 3.17 | H14: 3.09 | I14: 3.08 | J14: 1.48 | K14: 1.51 | L14: 1.51 | M14: 1.55 | N14: 0.89 | O14: 0.96 | P14: 0.99 | Q14: 1.04 | R14: 5.11 | S14: 3.96 | T14: 3.57 | U14: 3.1 | V14: 6.16 | W14: 4.58 | X14: 3.94 | Y14: 3.5 | Z14: 6.06 | AA14: 4.05 | AB14: 3.44 | AC14: 2.98 | AD14: 5.93 | AE14: 3.6 | AF14: 3.03 | AG14: 2.6
A15: HWT-801HW-E | B15: 7.79 | C15: 7.3 | D15: 7.08 | E15: 6.73 | F15: 4.59 | G15: 4.38 | H15: 4.3 | I15: 4.15 | J15: 2.18 | K15: 2.2 | L15: 2.2 | M15: 2.22 | N15: 1.38 | O15: 1.47 | P15: 1.51 | Q15: 1.57 | R15: 4.56 | S15: 3.77 | T15: 3.49 | U15: 3.07 | V15: 4.7 | W15: 3.74 | X15: 3.42 | Y15: 2.97 | Z15: 5.15 | AA15: 3.67 | AB15: 3.27 | AC15: 2.77 | AD15: 5.75 | AE15: 3.6 | AF15: 3.14 | AG15: 2.62
A16: HWT-1101HW-E | B16: 8.12 | C16: 7.91 | D16: 7.83 | E16: 7.68 | F16: 4.75 | G16: 4.69 | H16: 4.67 | I16: 4.63 | J16: 2.22 | K16: 2.27 | L16: 2.3 | M16: 2.33 | N16: 1.38 | O16: 1.47 | P16: 1.51 | Q16: 1.57 | R16: 4.39 | S16: 3.52 | T16: 3.23 | U16: 2.83 | V16: 4.55 | W16: 3.53 | X16: 3.21 | Y16: 2.79 | Z16: 5.04 | AA16: 3.56 | AB16: 3.18 | AC16: 2.7 | AD16: 5.75 | AE16: 3.6 | AF16: 3.14 | AG16: 2.62
A17: HWT-1401HW-E | B17: 11.6 | C17: 11.11 | D17: 10.89 | E17: 10.54 | F17: 7.18 | G17: 6.84 | H17: 6.7 | I17: 6.47 | J17: 2.75 | K17: 3.06 | L17: 3.19 | M17: 3.41 | N17: 2.75 | O17: 3.06 | P17: 3.19 | Q17: 3.41 | R17: 3.88 | S17: 3.04 | T17: 2.77 | U17: 2.39 | V17: 3.89 | W17: 3.16 | X17: 2.91 | Y17: 2.55 | Z17: 3.91 | AA17: 3.46 | AB17: 3.29 | AC17: 3.02 | AD17: 3.93 | AE17: 3.4 | AF17: 3.23 | AG17: 3.02
A18: HWT-801H8W-E | B18: 8.07 | C18: 8.25 | D18: 7.95 | E18: 7.44 | F18: 4.84 | G18: 4.95 | H18: 4.77 | I18: 4.46 | J18: 2.8 | K18: 3.61 | L18: 3.48 | M18: 3.28 | N18: 2.8 | O18: 3.61 | P18: 3.48 | Q18: 3.26 | R18: 4.14 | S18: 3.46 | T18: 3.21 | U18: 2.83 | V18: 4.42 | W18: 3.71 | X18: 3.47 | Y18: 3.13 | Z18: 3.86 | AA18: 3.57 | AB18: 3.33 | AC18: 2.98 | AD18: 3.86 | AE18: 3.57 | AF18: 3.33 | AG18: 2.98
A19: HWT-1101H8W-E | B19: 9.4 | C19: 9.68 | D19: 9.35 | E19: 8.81 | F19: 5.64 | G19: 5.81 | H19: 5.61 | I19: 5.29 | J19: 2.82 | K19: 3.53 | L19: 3.41 | M19: 3.21 | N19: 2.73 | O19: 3.53 | P19: 3.41 | Q19: 3.21 | R19: 4.03 | S19: 3.32 | T19: 3.06 | U19: 2.68 | V19: 4.47 | W19: 3.68 | X19: 3.43 | Y19: 3.11 | Z19: 3.87 | AA19: 3.55 | AB19: 3.31 | AC19: 2.97 | AD19: 3.83 | AE19: 3.55 | AF19: 3.31 | AG19: 2.97
A20: HWT-1401H8W-E | B20: 11.6 | C20: 11.11 | D20: 10.89 | E20: 10.54 | F20: 6.96 | G20: 6.66 | H20: 6.54 | I20: 6.32 | J20: 3.48 | K20: 3.33 | L20: 3.27 | M20: 3.16 | N20: 2.74 | O20: 3.29 | P20: 3.23 | Q20: 3.13 | R20: 3.88 | S20: 3.04 | T20: 2.77 | U20: 2.39 | V20: 4.43 | W20: 3.6 | X20: 3.35 | Y20: 3 | Z20: 4.15 | AA20: 3.5 | AB20: 3.28 | AC20: 2.95 | AD20: 3.83 | AE20: 3.49 | AF20: 3.26 | AG20: 2.34

Sheet 13°
A2: Capacità (kW) | B2: Pt 100%20 | C2: Pt 100% 27 | D2: Pt 100% 30 | E2: Pt 100% 35 | F2: Pt 60%20 | G2: Pt 60%27 | H2: Pt 60% 30 | I2: Pt 60% 35 | J2: Pt 30%20 | K2: Pt 30% 27 | L2: Pt 30% 30 | M2: Pt 30% 35 | N2: Pt 10%20 | O2: Pt 10% 27 | P2: Pt 10% 30 | Q2: Pt 10% 35 | R2: COP 100%20 | S2: COP 100% 27 | T2: COP 100% 30 | U2: COP 100% 35 | V2: COP 60%20 | W2: COP 60% 27 | X2: COP 60% 30 | Y2: COP 60% 35 | Z2: COP 30%20 | AA2: COP 30% 27 | AB2: COP 30% 30 | AC2: COP 30% 35 | AD2: COP 10%20 | AE2: COP 10% 27 | AF2: COP 10% 30 | AG2: COP 10% 35
A3: HWS-805H-E | B3: 8.49 | C3: 8.3 | D3: 8.23 | E3: 8.1 | F3: 5.1 | G3: 7.98 | H3: 4.94 | I3: 4.86 | J3: 2.54 | K3: 4.16 | L3: 4.12 | M3: 4.06 | N3: 2.28 | O3: 4.16 | P3: 4.12 | Q3: 4.06 | R3: 4.97 | S3: 3.99 | T3: 3.67 | U3: 3.223 | V3: 5.21 | W3: 4.17 | X3: 3.84 | Y3: 3.39 | Z3: 6.03 | AA3: 4.32 | AB3: 3.94 | AC3: 3.49 | AD3: 6.16 | AE3: 4.32 | AF3: 3.94 | AG3: 3.49
A4: HWS-1405H-E | B4: 15.5 | C4: 15.52 | D4: 14.09 | E4: 13.39 | F4: 9.29 | G4: 8.71 | H4: 8.45 | I4: 8.03 | J4: 4.65 | K4: 7.59 | L4: 7.37 | M4: 7 | N4: 4.48 | O4: 7.59 | P4: 7.37 | Q4: 7 | R4: 5.38 | S4: 4.23 | T4: 3.84 | U4: 3.29 | V4: 6.41 | W4: 5.01 | X4: 4.57 | Y4: 3.92 | Z4: 7.11 | AA4: 5.17 | AB4: 4.73 | AC4: 4.04 | AD4: 7.14 | AE4: 5.17 | AF4: 4.73 | AG4: 4.04
A5: HWS-1105H8-E | B5: 12.75 | C5: 12.24 | D5: 12.02 | E5: 11.66 | F5: 7.65 | G5: 7.34 | H5: 7.21 | I5: 6.99 | J5: 3.82 | K5: 6.56 | L5: 6.45 | M5: 6.25 | N5: 3.29 | O5: 6.56 | P5: 6.45 | Q5: 6.25 | R5: 6.02 | S5: 4.62 | T5: 4.18 | U5: 3.58 | V5: 6.22 | W5: 4.77 | X5: 4.33 | Y5: 3.7 | Z5: 6.22 | AA5: 4.54 | AB5: 4.11 | AC5: 3.52 | AD5: 5.84 | AE5: 4.54 | AF5: 4.11 | AG5: 3.52
A6: HWS-1405H8-E | B6: 15.1 | C6: 14.46 | D6: 14.19 | E6: 13.73 | F6: 9.06 | G6: 8.67 | H6: 8.51 | I6: 8.24 | J6: 4.53 | K6: 6.03 | L6: 5.91 | M6: 5.72 | N6: 2.51 | O6: 6.03 | P6: 5.91 | Q6: 5.72 | R6: 5.35 | S6: 4.14 | T6: 3.75 | U6: 3.22 | V6: 5.53 | W6: 4.28 | X6: 3.87 | Y6: 3.34 | Z6: 5.53 | AA6: 5.7 | AB6: 5.2 | AC6: 4.44 | AD6: 6.5 | AE6: 5.7 | AF6: 5.2 | AG6: 4.44
A7: HWS-1605H8-E | B7: 16.34 | C7: 15.54 | D7: 15.19 | E7: 14.62 | F7: 9.8 | G7: 9.32 | H7: 9.12 | I7: 8.77 | J7: 4.91 | K7: 6.46 | L7: 6.32 | M7: 6.08 | N7: 3.26 | O7: 6.46 | P7: 6.32 | Q7: 6.08 | R7: 5 | S7: 3.9 | T7: 3.54 | U7: 3.04 | V7: 5.34 | W7: 4.18 | X7: 3.8 | Y7: 3.26 | Z7: 5.79 | AA7: 6.09 | AB7: 5.54 | AC7: 4.74 | AD7: 7.11 | AE7: 6.09 | AF7: 5.54 | AG7: 4.74
A8: HWS-P805HR-E | B8: 8.99 | C8: 8.50 | D8: 8.51 | E8: 8.62 | F8: 5.40 | G8: 5.09 | H8: 5.11 | I8: 5.17 | J8: 2.70 | K8: 4.25 | L8: 4.26 | M8: 4.32 | N8: 2.42 | O8: 4.25 | P8: 4.26 | Q8: 4.32 | R8: 6.97 | S8: 5.09 | T8: 4.65 | U8: 4.09 | V8: 7.32 | W8: 5.32 | X8: 4.86 | Y8: 4.29 | Z8: 8.46 | AA8: 5.50 | AB8: 4.98 | AC8: 4.42 | AD8: 8.65 | AE8: 5.50 | AF8: 4.98 | AG8: 4.42
A9: HWS-P1105HR-E | B9: 12.89 | C9: 12.22 | D9: 11.97 | E9: 11.66 | F9: 7.73 | G9: 7.34 | H9: 7.18 | I9: 7.00 | J9: 3.87 | K9: 6.82 | L9: 6.69 | M9: 6.51 | N9: 3.78 | O9: 6.82 | P9: 6.69 | Q9: 6.51 | R9: 6.20 | S9: 4.59 | T9: 4.10 | U9: 3.47 | V9: 6.98 | W9: 5.34 | X9: 4.76 | Y9: 4.04 | Z9: 7.61 | AA9: 5.43 | AB9: 4.86 | AC9: 4.09 | AD9: 7.55 | AE9: 5.43 | AF9: 4.86 | AG9: 4.09
A10: HWS-P805H8R-E | B10: 8.99 | C10: 8.50 | D10: 8.51 | E10: 8.62 | F10: 5.40 | G10: 5.09 | H10: 5.11 | I10: 5.17 | J10: 2.70 | K10: 4.25 | L10: 4.26 | M10: 4.32 | N10: 2.42 | O10: 4.25 | P10: 4.26 | Q10: 4.32 | R10: 6.90 | S10: 5.04 | T10: 4.60 | U10: 4.05 | V10: 7.24 | W10: 5.26 | X10: 4.82 | Y10: 4.25 | Z10: 8.38 | AA10: 5.44 | AB10: 4.93 | AC10: 4.38 | AD10: 8.56 | AE10: 5.44 | AF10: 4.93 | AG10: 4.38
A11: HWS-P1105H8R-E | B11: 12.89 | C11: 12.22 | D11: 11.97 | E11: 11.66 | F11: 7.73 | G11: 7.34 | H11: 7.18 | I11: 7.00 | J11: 3.87 | K11: 6.82 | L11: 6.69 | M11: 6.51 | N11: 3.78 | O11: 6.82 | P11: 6.69 | Q11: 6.51 | R11: 6.14 | S11: 4.54 | T11: 4.06 | U11: 3.44 | V11: 6.91 | W11: 5.28 | X11: 4.71 | Y11: 4.00 | Z11: 7.53 | AA11: 5.38 | AB11: 4.81 | AC11: 4.05 | AD11: 7.48 | AE11: 5.38 | AF11: 4.81 | AG11: 4.05
A12: HWS-P1405H8R-E | B12: 14.59 | C12: 15.30 | D12: 14.49 | E12: 13.16 | F12: 8.76 | G12: 9.18 | H12: 8.70 | I12: 7.90 | J12: 4.38 | K12: 6.82 | L12: 6.69 | M12: 6.51 | N12: 3.78 | O12: 6.82 | P12: 6.69 | Q12: 6.51 | R12: 5.01 | S12: 3.82 | T12: 3.50 | U12: 2.97 | V12: 6.34 | W12: 4.94 | X12: 4.47 | Y12: 3.82 | Z12: 7.34 | AA12: 5.38 | AB12: 4.81 | AC12: 4.05 | AD12: 7.48 | AE12: 5.38 | AF12: 4.81 | AG12: 4.05
A13: HWT-401HW-E | B13: 6.24 | C13: 5.98 | D13: 5.87 | E13: 5.69 | F13: 3.91 | G13: 3.8 | H13: 3.69 | I13: 3.67 | J13: 2.13 | K13: 2.03 | L13: 2 | M13: 1.93 | N13: 0.94 | O13: 1.13 | P13: 1.19 | Q13: 1.35 | R13: 5.29 | S13: 4.61 | T13: 4.36 | U13: 3.98 | V13: 7.44 | W13: 5.53 | X13: 4.88 | Y13: 4.22 | Z13: 7.88 | AA13: 5.43 | AB13: 4.61 | AC13: 3.9 | AD13: 9.4 | AE13: 5.01 | AF13: 4.1 | AG13: 3.65
A14: HWT-601HW-E | B14: 6.63 | C14: 6.57 | D14: 6.45 | E14: 6.51 | F14: 3.91 | G14: 3.8 | H14: 3.77 | I14: 3.67 | J14: 2.13 | K14: 2.03 | L14: 2.02 | M14: 1.93 | N14: 0.94 | O14: 1.13 | P14: 1.19 | Q14: 1.35 | R14: 5.48 | S14: 4.45 | T14: 4.06 | U14: 3.66 | V14: 7.44 | W14: 5.53 | X14: 4.8 | Y14: 4.22 | Z14: 7.88 | AA14: 5.43 | AB14: 4.6 | AC14: 3.9 | AD14: 9.4 | AE14: 5.01 | AF14: 4.1 | AG14: 3.65
A15: HWT-801HW-E | B15: 8.97 | C15: 8.49 | D15: 8.28 | E15: 7.94 | F15: 5.47 | G15: 5.09 | H15: 4.93 | I15: 4.65 | J15: 2.85 | K15: 2.54 | L15: 2.41 | M15: 2.19 | N15: 1.1 | O15: 1.61 | P15: 1.83 | Q15: 2.19 | R15: 5.07 | S15: 4.26 | T15: 3.96 | U15: 3.53 | V15: 5.19 | W15: 4.38 | X15: 4.08 | Y15: 3.62 | Z15: 5.5 | AA15: 4.73 | AB15: 4.41 | AC15: 3.91 | AD15: 6.88 | AE15: 4.64 | AF15: 4.28 | AG15: 3.91
A16: HWT-1101HW-E | B16: 9.47 | C16: 9.37 | D16: 9.32 | E16: 9.25 | F16: 5.75 | G16: 5.74 | H16: 5.73 | I16: 5.72 | J16: 2.96 | K16: 3.01 | L16: 3.04 | M16: 3.07 | N16: 1.1 | O16: 1.61 | P16: 1.83 | Q16: 2.19 | R16: 5.17 | S16: 3.96 | T16: 3.59 | U16: 3.1 | V16: 5.29 | W16: 4.08 | X16: 3.71 | Y16: 3.23 | Z16: 5.57 | AA16: 4.39 | AB16: 4.04 | AC16: 3.56 | AD16: 6.88 | AE16: 4.64 | AF16: 4.28 | AG16: 3.91
A17: HWT-1401HW-E | B17: 13.44 | C17: 13.04 | D17: 12.87 | E17: 12.59 | F17: 8.25 | G17: 8 | H17: 7.9 | I17: 7.72 | J17: 4.36 | K17: 4.22 | L17: 4.17 | M17: 4.07 | N17: 1.76 | O17: 2.84 | P17: 3.3 | Q17: 4.07 | R17: 4.47 | S17: 3.45 | T17: 3.13 | U17: 2.7 | V17: 4.5 | W17: 3.64 | X17: 3.35 | Y17: 2.95 | Z17: 4.59 | AA17: 4.18 | AB17: 4.02 | AC17: 3.77 | AD17: 4.89 | AE17: 4.08 | AF17: 3.93 | AG17: 3.77
A18: HWT-801H8W-E | B18: 9.41 | C18: 9.63 | D18: 9.27 | E18: 8.68 | F18: 5.65 | G18: 5.78 | H18: 5.56 | I18: 5.21 | J18: 2.82 | K18: 4.21 | L18: 4.06 | M18: 3.8 | N18: 2.22 | O18: 4.21 | P18: 4.06 | Q18: 3.8 | R18: 5.09 | S18: 4.07 | T18: 3.71 | U18: 3.19 | V18: 5.65 | W18: 4.47 | X18: 4.13 | Y18: 3.67 | Z18: 5.57 | AA18: 4.57 | AB18: 4.2 | AC18: 3.69 | AD18: 5.31 | AE18: 4.57 | AF18: 4.2 | AG18: 3.69
A19: HWT-1101H8W-E | B19: 10.94 | C19: 11.28 | D19: 10.91 | E19: 10.28 | F19: 6.56 | G19: 6.77 | H19: 6.54 | I19: 6.17 | J19: 3.28 | K19: 4.11 | L19: 3.98 | M19: 3.75 | N19: 2.16 | O19: 4.11 | P19: 3.98 | Q19: 3.75 | R19: 4.64 | S19: 3.77 | T19: 3.46 | U19: 3.01 | V19: 5.53 | W19: 4.34 | X19: 4.01 | Y19: 3.57 | Z19: 5.68 | AA19: 4.57 | AB19: 4.2 | AC19: 3.68 | AD19: 5.27 | AE19: 4.57 | AF19: 4.2 | AG19: 3.68
A20: HWT-1401H8W-E | B20: 13.44 | C20: 13.04 | D20: 12.87 | E20: 12.59 | F20: 8.06 | G20: 7.83 | H20: 7.72 | I20: 7.55 | J20: 4.03 | K20: 3.91 | L20: 3.86 | M20: 3.78 | N20: 2.16 | O20: 3.87 | P20: 3.82 | Q20: 3.77 | R20: 4.47 | S20: 3.45 | T20: 3.13 | U20: 2.7 | V20: 5.29 | W20: 4.17 | X20: 3.83 | Y20: 3.38 | Z20: 5.75 | AA20: 4.56 | AB20: 4.13 | AC20: 3.69 | AD20: 5.27 | AE20: 4.56 | AF20: 4.19 | AG20: 3.69

Sheet 18°
A2: Capacità (kW) | B2: Pt 100%20 | C2: Pt 100% 27 | D2: Pt 100% 30 | E2: Pt 100% 35 | F2: Pt 60%20 | G2: Pt 60%27 | H2: Pt 60% 30 | I2: Pt 60% 35 | J2: Pt 30%20 | K2: Pt 30% 27 | L2: Pt 30% 30 | M2: Pt 30% 35 | N2: Pt 10%20 | O2: Pt 10% 27 | P2: Pt 10% 30 | Q2: Pt 10% 35 | R2: COP 100%20 | S2: COP 100% 27 | T2: COP 100% 30 | U2: COP 100% 35 | V2: COP 60%20 | W2: COP 60% 27 | X2: COP 60% 30 | Y2: COP 60% 35 | Z2: COP 30%20 | AA2: COP 30% 27 | AB2: COP 30% 30 | AC2: COP 30% 35 | AD2: COP 10%20 | AE2: COP 10% 27 | AF2: COP 10% 30 | AG2: COP 10% 35
A3: HWS-805H-E | B3: 9.64 | C3: 9.43 | D3: 9.34 | E3: 9.19 | F3: 5.78 | G3: 5.66 | H3: 5.6 | I3: 5.52 | J3: 3.45 | K3: 5.3 | L3: 5.25 | M3: 5.17 | N3: 3.45 | O3: 5.3 | P3: 5.25 | Q3: 5.17 | R3: 5.46 | S3: 4.38 | T3: 4.03 | U3: 3.55 | V3: 5.92 | W3: 5.03 | X3: 4.61 | Y3: 4.04 | Z3: 7.91 | AA3: 5.12 | AB3: 4.72 | AC3: 4.18 | AD3: 7.91 | AE3: 5.12 | AF3: 4.72 | AG3: 4.18
A4: HWS-1405H-E | B4: 17.71 | C4: 16.45 | D4: 15.9 | E4: 15 | F4: 10.62 | G4: 9.87 | H4: 9.54 | I4: 9 | J4: 6.16 | K4: 9.26 | L4: 8.95 | M4: 8.44 | N4: 6.16 | O4: 9.26 | P4: 8.95 | Q4: 8.44 | R4: 6.15 | S4: 4.79 | T4: 4.33 | U4: 3.69 | V4: 7.42 | W4: 6.07 | X4: 5.49 | Y4: 4.67 | Z4: 8.82 | AA4: 6.21 | AB4: 5.61 | AC4: 4.78 | AD4: 8.82 | AE4: 6.21 | AF4: 5.62 | AG4: 4.78
A5: HWS-1105H8-E | B5: 14.34 | C5: 13.78 | D5: 13.55 | E5: 13.15 | F5: 8.61 | G5: 8.27 | H5: 8.12 | I5: 7.89 | J5: 4.96 | K5: 8.14 | L5: 8 | M5: 7.77 | N5: 4.96 | O5: 8.14 | P5: 8 | Q5: 7.77 | R5: 6.7 | S5: 5.11 | T5: 4.61 | U5: 3.94 | V5: 6.94 | W5: 5.57 | X5: 5.02 | Y5: 4.29 | Z5: 9.01 | AA5: 5.79 | AB5: 5.2 | AC5: 4.47 | AD5: 9.01 | AE5: 5.79 | AF5: 5.2 | AG5: 4.47
A6: HWS-1405H8-E | B6: 16.92 | C6: 16.23 | D6: 15.93 | E6: 15.44 | F6: 10.15 | G6: 9.74 | H6: 9.56 | I6: 9.26 | J6: 5.08 | K6: 7.87 | L6: 7.72 | M6: 7.48 | N6: 4.47 | O6: 7.87 | P6: 7.72 | Q6: 7.48 | R6: 6 | S6: 4.57 | T6: 4.12 | U6: 3.52 | V6: 6 | W6: 4.81 | X6: 4.34 | Y6: 3.7 | Z6: 6.38 | AA6: 6.62 | AB6: 5.99 | AC6: 5.1 | AD6: 8.07 | AE6: 6.62 | AF6: 5.99 | AG6: 5.1
A7: HWS-1605H8-E | B7: 18.29 | C7: 17.4 | D7: 17.02 | E7: 16.39 | F7: 10.98 | G7: 10.44 | H7: 10.21 | I7: 9.83 | J7: 5.48 | K7: 7.57 | L7: 7.41 | M7: 7.12 | N7: 4.45 | O7: 7.57 | P7: 7.41 | Q7: 7.12 | R7: 5.56 | S7: 4.27 | T7: 3.85 | U7: 3.29 | V7: 5.59 | W7: 4.48 | X7: 4.06 | Y7: 3.46 | Z7: 5.88 | AA7: 7.14 | AB7: 6.46 | AC7: 5.49 | AD7: 7.68 | AE7: 7.14 | AF7: 6.46 | AG7: 5.49
A8: HWS-P805HR-E | B8: 8.99 | C8: 9.30 | D8: 9.43 | E8: 9.65 | F8: 5.40 | G8: 5.58 | H8: 5.66 | I8: 5.79 | J8: 3.22 | K8: 5.23 | L8: 5.30 | M8: 5.43 | N8: 3.22 | O8: 5.23 | P8: 5.30 | Q8: 5.43 | R8: 6.97 | S8: 5.57 | T8: 5.15 | U8: 4.59 | V8: 7.57 | W8: 6.39 | X8: 5.89 | Y8: 5.23 | Z8: 10.10 | AA8: 6.50 | AB8: 6.03 | AC8: 5.40 | AD8: 10.10 | AE8: 6.50 | AF8: 6.03 | AG8: 5.40
A9: HWS-P1105HR-E | B9: 14.12 | C9: 13.51 | D9: 13.25 | E9: 12.81 | F9: 8.48 | G9: 8.24 | H9: 8.09 | I9: 7.82 | J9: 5.31 | K9: 8.24 | L9: 8.09 | M9: 7.82 | N9: 5.31 | O9: 8.24 | P9: 8.09 | Q9: 7.82 | R9: 6.83 | S9: 5.01 | T9: 4.47 | U9: 3.75 | V9: 8.32 | W9: 6.35 | X9: 5.69 | Y9: 4.76 | Z9: 10.07 | AA9: 6.35 | AB9: 5.69 | AC9: 4.76 | AD9: 10.07 | AE9: 6.35 | AF9: 5.69 | AG9: 4.76
A10: HWS-P805H8R-E | B10: 8.99 | C10: 9.30 | D10: 9.43 | E10: 9.65 | F10: 5.40 | G10: 5.58 | H10: 5.66 | I10: 5.79 | J10: 3.22 | K10: 5.23 | L10: 5.30 | M10: 5.43 | N10: 3.22 | O10: 5.23 | P10: 5.30 | Q10: 5.43 | R10: 6.90 | S10: 5.52 | T10: 5.10 | U10: 4.54 | V10: 7.49 | W10: 6.33 | X10: 5.83 | Y10: 5.18 | Z10: 10.00 | AA10: 6.43 | AB10: 5.97 | AC10: 5.34 | AD10: 10.00 | AE10: 6.43 | AF10: 5.97 | AG10: 5.34
A11: HWS-P1105H8R-E | B11: 14.12 | C11: 13.51 | D11: 13.25 | E11: 12.81 | F11: 8.48 | G11: 8.24 | H11: 8.09 | I11: 7.82 | J11: 5.31 | K11: 8.24 | L11: 8.09 | M11: 7.82 | N11: 5.31 | O11: 8.24 | P11: 8.09 | Q11: 7.82 | R11: 6.77 | S11: 4.96 | T11: 4.42 | U11: 3.71 | V11: 8.24 | W11: 6.29 | X11: 5.63 | Y11: 4.71 | Z11: 9.97 | AA11: 6.29 | AB11: 5.63 | AC11: 4.71 | AD11: 9.97 | AE11: 6.29 | AF11: 5.63 | AG11: 4.71
A12: HWS-P1405H8R-E | B12: 16.29 | C12: 16.63 | D12: 15.94 | E12: 14.78 | F12: 9.77 | G12: 9.98 | H12: 9.56 | I12: 8.87 | J12: 5.31 | K12: 8.24 | L12: 8.09 | M12: 7.82 | N12: 5.31 | O12: 8.24 | P12: 8.09 | Q12: 7.82 | R12: 5.47 | S12: 3.98 | T12: 3.70 | U12: 3.22 | V12: 8.14 | W12: 5.81 | X12: 5.27 | Y12: 4.49 | Z12: 9.97 | AA12: 6.29 | AB12: 5.63 | AC12: 4.71 | AD12: 9.97 | AE12: 6.29 | AF12: 5.63 | AG12: 4.71
A13: HWT-401HW-E | B13: 7.19 | C13: 6.79 | D13: 6.62 | E13: 6.34 | F13: 4.34 | G13: 4.06 | H13: 3.92 | I13: 3.75 | J13: 2.41 | K13: 2.24 | L13: 2.15 | M13: 2.06 | N13: 1.12 | O13: 1.29 | P13: 1.37 | Q13: 1.49 | R13: 6.36 | S13: 5.31 | T13: 4.93 | U13: 4.37 | V13: 8.42 | W13: 6.48 | X13: 5.74 | Y13: 4.97 | Z13: 9.26 | AA13: 6.49 | AB13: 5.58 | AC13: 4.63 | AD13: 12.44 | AE13: 6.25 | AF13: 5.09 | AG13: 4.38
A14: HWT-601HW-E | B14: 7.51 | C14: 7.33 | D14: 7.25 | E14: 7.12 | F14: 4.34 | G14: 4.33 | H14: 4.24 | I14: 4.32 | J14: 2.41 | K14: 2.31 | L14: 2.21 | M14: 2.2 | N14: 1.12 | O14: 1.29 | P14: 1.37 | Q14: 1.49 | R14: 6.11 | S14: 4.87 | T14: 4.47 | U14: 3.91 | V14: 8.42 | W14: 6.4 | X14: 5.68 | Y14: 5.02 | Z14: 9.26 | AA14: 6.45 | AB14: 5.58 | AC14: 4.68 | AD14: 12.44 | AE14: 6.25 | AF14: 5.09 | AG14: 4.38
A15: HWT-801HW-E | B15: 10.09 | C15: 9.51 | D15: 9.26 | E15: 8.85 | F15: 5.81 | G15: 5.58 | H15: 5.48 | I15: 5.32 | J15: 2.6 | K15: 2.63 | L15: 2.65 | M15: 2.67 | N15: 1.53 | O15: 2.06 | P15: 2.29 | Q15: 2.67 | R15: 5.9 | S15: 4.8 | T15: 4.42 | U15: 3.86 | V15: 6.35 | W15: 5.15 | X15: 4.74 | Y15: 4.16 | Z15: 8.16 | AA15: 6.38 | AB15: 5.84 | AC15: 5.13 | AD15: 12.75 | AE15: 6.72 | AF15: 5.92 | AG15: 5.13
A16: HWT-1101HW-E | B16: 10.57 | C16: 10.43 | D16: 10.36 | E16: 10.26 | F16: 6.05 | G16: 5.99 | H16: 5.97 | I16: 5.92 | J16: 2.66 | K16: 2.66 | L16: 2.67 | M16: 2.67 | N16: 1.53 | O16: 2.06 | P16: 2.29 | Q16: 2.67 | R16: 5.87 | S16: 4.37 | T16: 3.93 | U16: 3.35 | V16: 6.3 | W16: 4.74 | X16: 4.28 | Y16: 4.45 | Z16: 8.06 | AA16: 6.36 | AB16: 5.84 | AC16: 5.13 | AD16: 12.75 | AE16: 6.72 | AF16: 5.92 | AG16: 5.13
A17: HWT-1401HW-E | B17: 14.76 | C17: 14.24 | D17: 14.01 | E17: 13.64 | F17: 9.15 | G17: 8.71 | H17: 8.53 | I17: 8.22 | J17: 4.94 | K17: 4.57 | L17: 4.42 | M17: 4.16 | N17: 2.13 | O17: 2.44 | P17: 2.58 | Q17: 2.8 | R17: 4.75 | S17: 3.71 | T17: 3.37 | U17: 2.91 | V17: 4.85 | W17: 3.89 | X17: 3.57 | Y17: 3.11 | Z17: 5.08 | AA17: 4.41 | AB17: 4.15 | AC17: 3.74 | AD17: 5.92 | AE17: 5.18 | AF17: 4.96 | AG17: 4.67
A18: HWT-801H8W-E | B18: 10.58 | C18: 10.82 | D18: 10.43 | E18: 9.76 | F18: 6.35 | G18: 6.49 | H18: 6.26 | I18: 5.86 | J18: 3.17 | K18: 3.25 | L18: 3.13 | M18: 2.93 | N18: 2.5 | O18: 2.44 | P18: 2.48 | Q18: 2.56 | R18: 5.75 | S18: 4.54 | T18: 4.15 | U18: 3.52 | V18: 6.67 | W18: 5.11 | X18: 4.7 | Y18: 4.16 | Z18: 6.66 | AA18: 5.42 | AB18: 5.01 | AC18: 4.44 | AD18: 6.26 | AE18: 5.19 | AF18: 4.86 | AG18: 4.39
A19: HWT-1101H8W-E | B19: 12.32 | C19: 12.65 | D19: 12.21 | E19: 11.47 | F19: 7.39 | G19: 7.59 | H19: 7.33 | I19: 6.88 | J19: 3.7 | K19: 3.8 | L19: 3.66 | M19: 3.44 | N19: 2.44 | O19: 2.37 | P19: 2.42 | Q19: 2.51 | R19: 5.4 | S19: 4.23 | T19: 3.83 | U19: 3.26 | V19: 6.44 | W19: 4.89 | X19: 4.49 | Y19: 3.98 | Z19: 6.81 | AA19: 5.46 | AB19: 5.03 | AC19: 4.46 | AD19: 6.21 | AE19: 5.15 | AF19: 4.83 | AG19: 4.38
A20: HWT-1401H8W-E | B20: 14.76 | C20: 14.24 | D20: 14.01 | E20: 13.64 | F20: 8.86 | G20: 8.54 | H20: 8.41 | I20: 8.18 | J20: 4.43 | K20: 4.27 | L20: 4.2 | M20: 4.09 | N20: 2.37 | O20: 2.17 | P20: 2.26 | Q20: 2.47 | R20: 4.75 | S20: 3.71 | T20: 3.37 | U20: 2.91 | V20: 6.09 | W20: 4.69 | X20: 4.28 | Y20: 3.75 | Z20: 6.88 | AA20: 5.45 | AB20: 5.01 | AC20: 4.42 | AD20: 6.16 | AE20: 5.04 | AF20: 4.77 | AG20: 4.37

Sheet Modelli
A1: Tipologia | B1: Modello
A2: ESTIA 5 | B2: HWS-805H-E
A3: ESTIA 5 | B3: HWS-1405H-E
A4: ESTIA 5 | B4: HWS-1105H8-E
A5: ESTIA 5 | B5: HWS-1405H8-E
A6: ESTIA 5 | B6: HWS-1605H8-E
A7: ESTIA 5 High Temp | B7: HWS-P805HR-E
A8: ESTIA 5 High Temp | B8: HWS-P1105HR-E
A9: ESTIA 5 High Temp | B9: HWS-P805H8R-E
A10: ESTIA 5 High Temp | B10: HWS-P1105H8R-E
A11: ESTIA 5 High Temp | B11: HWS-P1405H8R-E
A12: Estia R32 | B12: HWT-401HW-E
A13: Estia R32 | B13: HWT-601HW-E
A14: Estia R32 | B14: HWT-801HW-E
A15: Estia R32 | B15: HWT-1101HW-E
A16: Estia R32 | B16: HWT-1401HW-E
A17: Estia R32 | B17: HWT-801H8W-E
A18: Estia R32 | B18: HWT-1101H8W-E
A19: Estia R32 | B19: HWT-1401H8W-E
